Workbook

Sheet PLAN OFICIAL (hidden)
A8: PREFEITURA MUNICIPAL DE LAGOA GRANDE
A9: Secretaria de Infra-Estrutura e Meio Ambiente
A11: OBRA: Construção de Cozinha Comunitária
A12: LOCAL: Sede de Lagoa Grande-PE
A14: PLANILHA ORÇAMENTÁRIA
A16: ITEM | B16: CÓDIGO | C16: FONTE | D16: DISCRIMINAÇÃO DOS SERVIÇOS | E16: UND | F16: QUANT | G16: PREÇO UNIT | H16: PREÇO TOTAL
D17: PRÉDIO PRINCIPAL
A18: 1.0 | D18: SERVIÇOS PRELIMINARES | H18: =SUM(H19:H21) -> 
A19: 1.1 | B19: 74209/001 | C19: SINAPI MAR 2009 | D19: FORNECIMENTO E ASSENTAMENTO DE PLACA DA OBRA | E19: M² | F19: ='Mem calc '!I21 -> 7.5 | G19: 209.27 | H19: =ROUND(F19*G19,2) -> 1569.53
A20: 1.2 | B20: 73822/002 | C20: SINAPI MAR 2009 | D20: LIMPEZA DE TERRENO - RASPAGEM MECANIZADA (MOTONIVELADORA) DE CAMADA VEGETAL | E20: M² | F20: ='Mem calc '!#REF! ->  | G20: 0.43 | H20: =ROUND(F20*G20,2) -> 
A21: 1.3 | B21: 73992/001 | C21: SINAPI MAR 2009 | D21: LOCACAO CONVENCIONAL DE OBRA, ATRAVÉS DE GABARITO DE TABUAS CORRIDAS PONTALETADAS A CADA 1,50M | E21: M² | F21: ='Mem calc '!#REF! ->  | G21: 3.44
A22: 2.0 | D22: MOVIMENTO DE TERRA | H22: =SUM(H23:H24) -> 
A23: 2.1 | B23: 73965/010 | C23: SINAPI MAR 2009 | D23: ESCAVAÇÃO MANUAL DE VALAS PARA FUNDAÇÃO | E23: M³ | F23: ='Mem calc '!#REF! ->  | G23: 19.67
A24: 2.2 | B24: 55835 | C24: SINAPI MAR 2009 | D24: ATERRO INTERNO (EDIFICACOES) COMPACTADO MANUALMENTE | E24: M³ | F24: ='Mem calc '!#REF! ->  | G24: 19.67
A25: 3.0 | D25: FUNDAÇÃO | H25: =SUM(H26:H27) -> 12184.87
A26: 3.1 | B26: 74115/001 | C26: SINAPI MAR 2009 | D26: CONCRETO NÃO ESTRUTURAL 1 4 8 PARA FUNDAÇÕES, LANÇADO E ADENSADO. | E26: M³ | F26: 4.95 | G26: 242.84 | H26: 1202.06
A27: 3.2 | B27: 06.03.103 | C27: EMLURB 2008 | D27: CONCRETO ARMADO 25 MPA LANÇADO EM FUNDAÇÃO INCLUSIVE FORMA ESCORAMENTO E FERRAGENS | E27: M³ | F27: 11.39 | G27: 964.25 | H27: 10982.81
A28: 4.0 | D28: ESTRUTURA | H28: =SUM(H29:H31) -> 
A29: 4.1 | B29: 06.03.133 | C29: EMLURB 2008 | D29: CONCRETO ARMADO 25 MPA LANÇADO EM PILARES INCLUSIVE FORMA ESCORAMENTO E FERRAGENS | E29: M³ | F29: 5.34 | G29: 1636.33 | H29: 8738
A30: 4.2 | B30: 06.03.123 | C30: EMLURB 2008 | D30: CONCRETO ARMADO 25 MPA LANÇADO EM VIGAS INCLUSIVE FORMA ESCORAMENTO E FERRAGENS | E30: M³ | F30: 6.85 | G30: 1390.89 | H30: 9527.6
A31: 4.3 | B31: 74202/001 | C31: SINAPI MAR 2009 | D31: LAJE PRE-MOLDADA P/FORRO, SOBRECARGA 100KG/M2, VAOS ATE 3,50M/E=8CM, C/LAJOTAS E CAP.C/CONC FCK=20MPA, 3CM, INTER-EIXO 38CM, C/ESCORAMENTO (REAPR.3X) E FERRAGEM NEGATIVA | E31: M² | F31: ='Mem calc '!#REF! ->  | G31: 46.24
A32: 5.0 | D32: ELEVAÇÃO | H32: =SUM(H33:H34) -> 
A33: 5.1 | B33: 73987/001 | C33: SINAPI MAR 2009 | D33: ALVENARIA EM TIJOLO CERAMICO FURADO 10X20X20CM, 1 VEZ, ASSENTADO EM ARGAMASSA TRACO 1:2:8 (CIMENTO, CAL E AREIA), JUNTAS 12MM | E33: M² | F33: ='Mem calc '!#REF! ->  | G33: 42.03
A34: 5.2 | B34: 73982/001 | C34: SINAPI MAR 2009 | D34: ALVENARIA EM TIJOLO CERAMICO FURADO 10X20X20CM, 1/2 VEZ, ASSENTADO EM ARGAMASSA TRACO 1:2:8 (CIMENTO, CAL E AREIA), JUNTAS 12MM | E34: M² | F34: ='Mem calc '!#REF! ->  | G34: 26.14
A35: 6.0 | D35: REVESTIMENTOS | H35: =SUM(H36:H40) -> 
A36: 6.1 | B36: 73928/002 | C36: SINAPI MAR 2009 | D36: CHAPISCO COM ARGAMSSA DE CIMENTO E AREIA TRAÇO 1:3 | E36: M² | F36: ='Mem calc '!#REF! ->  | G36: 2.85
A37: 6.2 | B37: 11.05.010 | C37: EMLURB 2008 | D37: REVESTIMENTO COM ARGAMASSA DE CIMENTO E ARIEA NO TRAÇO 1:3 COM 2,0 CM DE ESPESSURA | E37: M² | F37: ='Mem calc '!#REF! ->  | G37: 15.51
A38: 6.3 | B38: 73927/002 | C38: SINAPI MAR 2009 | D38: EMBOCO TRACO 1:4 (CIMENTO E AREIA), ESPESSURA 2,0CM, PREPARO MANUAL | E38: M² | F38: ='Mem calc '!#REF! ->  | G38: 13.19
A39: 6.4 | B39: 73912/002 | C39: SINAPI MAR 2009 | D39: CERAMICA ESMALTADA EM PAREDES 1A, PEI-4, 20X20CM, PADRAO ALTO, FIXADA COM ARGAMASSA COLANTE E REJUNTAMENTO COM CIMENTO BRANCO | E39: M² | F39: ='Mem calc '!#REF! ->  | G39: 18.92
A40: 6.5 | B40: 11.07.010 | C40: EMLURB 2008 | D40: REVESTIMENTO EM PAREDES COM PASTILHAS ESMALTADAS | E40: M² | F40: ='Mem calc '!#REF! ->  | G40: 77.31
A41: 7.0 | D41: PISO | H41: =SUM(H42:H43) -> 
A42: 7.1 | B42: 74115/001 | C42: SINAPI MAR 2009 | D42: CONCRETO PARA LASTRO DE PISO (ESPESSURA 7CM) | E42: M³ | F42: ='Mem calc '!#REF! ->  | G42: 242.84
A43: 7.2 | B43: 74108/001 | C43: SINAPI MAR 2009 | D43: PISO CERAMICO GRES 1A PEI-4 30X30CM, ASSENTADO COM ARGAMASSA TRACO 1:4 | E43: M² | F43: ='Mem calc '!#REF! ->  | G43: 28.34
A44: 8.0 | D44: COBERTA | H44: =SUM(H45:H48) -> 
A45: 8.1 | B45: 72081 | C45: SINAPI MAR 2009 | D45: ESTRUTURA DE COBERTA EM MADEIRA DE LEI, PONTAESTRUTURA DE MADEIRA DE LEI 1A SERRADA NAO APARELHADA, PARA TELHAS ONDULADAS, VAOS ATE 7M | E45: M² | F45: ='Mem calc '!#REF! ->  | G45: 54.84
A46: 8.2 | B46: 74088/001 | C46: SINAPI MAR 2009 | D46: TELHAMENTO COM TELHA DE FIBROCIMENTO ONDULADA, ESPESSURA 6MM, INCLUSO JUNTAS DE VEDACAO E ACESSORIOS DE FIXACAO | E46: M² | F46: ='Mem calc '!#REF! ->  | G46: 22.42
A47: 8.3 | B47: 72107 | C47: SINAPI MAR 2009 | D47: RUFO EM CHAPA DE ACO GALVANIZADO N.24, DESENVOLVIMENTO 25CM | E47: M | F47: ='Mem calc '!#REF! ->  | G47: 17.73
A48: 8.4 | B48: 72105 | C48: SINAPI MAR 2009 | D48: CALHA EM CHAPA DE ACO GALVANIZADO N.24, DESENVOLVIMENTO 50CM | E48: M | F48: ='Mem calc '!#REF! ->  | G48: 33.61
A49: 9.0 | D49: PINTURA | H49: =SUM(H50:H54) -> 
A50: 9.1 | B50: 73750/001 | C50: SINAPI MAR 2009 | D50: PINTURA LATÉX INTERNA | E50: M² | F50: ='Mem calc '!#REF! ->  | G50: 6.06
A51: 9.2 | B51: 73954/002 | C51: SINAPI MAR 2009 | D51: PINTURA LATÉX ACRÍLICA EXTERNA | E51: M² | F51: ='Mem calc '!#REF! ->  | G51: 9.3
A52: 9.3 | B52: 73750/001 | C52: SINAPI MAR 2009 | D52: PINTURA LATÉX SOBRE FORRO DE GESSO | E52: M² | F52: ='Mem calc '!#REF! ->  | G52: 6.06
A53: 9.4 | B53: 74145/001 | C53: SINAPI MAR 2009 | D53: PINTURA EM ESMALTE SINTETICO EM PECAS METALICAS UTILIZANDO REVOLVER/COMPRESSOR, DUAS DEMAOS, INCLUSO UMA DEMAO FUNDO OXIDO DE FERRO/ZARCAO | E53: M² | F53: ='Mem calc '!#REF! ->  | G53: 9.87
A54: 9.5 | B54: 73739/001 | C54: SINAPI MAR 2009 | D54: PINTURA ESMALTE SOBRE ESQUADRIA DE MADEIRA | E54: M² | F54: ='Mem calc '!#REF! ->  | G54: 8.03
A55: 10.0 | D55: INSTALAÇÕES ELÉTRICAS | H55: =SUM(H56:H71) -> 7715.01
A56: 10.1 | B56: 73781/004 | C56: SINAPI MAR 2009 | D56: CAIXA DE MEDICAO PADRAO CONCESSIONARIA LOCAL ALTA TENSAO-FORNECIMENTO E COLOCAÇÃO | E56: UN | F56: 1 | G56: 351.34 | H56: 351.34
A57: 10.2 | B57: 74131/004 | C57: SINAPI MAR 2009 | D57: QUADRO DE DISTRIBUICAO DE ENERGIA EM CHAPA METALICA, DE SOBREPOR, COM PORTA, PARA 18 DISJUNTORES TERMOMAGNETICOS MONOPOLARES, SEM DISPOSITIVO PARA CHAVE GERAL, COM BARRAMENTO TRIFASICO E NEUTRO, FORNECIMENTO E COLOCAÇÃO | E57: UN | F57: 1 | G57: 199.34 | H57: 199.34
A58: 10.3 | B58: 74132/002 | C58: SINAPI MAR 2009 | D58: INSTALACAO PONTO LUZ EQUIVALENTE A 2 VARAS ELETRODUTO PVC RIGIDO 1/2", 12M FIO 2,5MM2 CAIXAS CONEXOES LUVAS CURVA E INTERRUPTOR COM PLACA, INCLUSIVE ABERTURA E FECHAMENTO DE RASGO EM ALVENARIA | E58: UN | F58: 6 | G58: 80.3 | H58: 481.8
A59: 10.4 | B59: 74132/004 | C59: SINAPI MAR 2009 | D59: INSTALACAO CONJUNTO 2 PONTOS LUZ EQUIVALENTE 5 VARAS ELETRODUTO PVC RIGIDO 1/2", 33M FIO 2,5MM2 CAIXAS CONEXOES LUVAS CURVA E INTERRUPTOR EMBUTIR COM PLACA, INCLUSIVE ABERTURA E FECHAMENTO DE RASGO EM ALVENARIA | E59: UN | F59: 8 | G59: 141.41 | H59: 1131.28
A60: 10.5 | B60: 74132/008 | C60: SINAPI MAR 2009 | D60: INSTALACAO CONJUNTO 4 PONTOS LUZ EQUIVALENTE 7 VARAS ELETRODUTO PVC RIGIDO 1/2", 50M FIO 2,5MM2 CAIXAS CONEXOES LUVAS CURVA E INTERRUPTOR EMBUTIR COM PLACA INCLUSIVE ABERTURA E FECHAMENTO RASGO ALVENARIA | E60: UN | F60: 2 | G60: 205.71 | H60: 411.42
A61: 10.6 | B61: 74132/011 | C61: SINAPI MAR 2009 | D61: INSTALACAO CONJUNTO 6 PONTOS LUZ EQUIVALENTE 9 VARAS ELETRODUTO PVC RIGIDO 3/4", 66M FIO 2,5MM2 CAIXAS CONEXOES LUVAS CURVA E INTERRUPTOR EMBUTIR COM PLACA, INCLUSIVE ABERTURA E FECHAMENTO RASGO ALVENARIA | E61: UN | F61: 1 | G61: 299.86 | H61: 299.86
A62: 10.7 | B62: 74063/001 | C62: SINAPI MAR 2009 | D62: PONTO LUZ PAREDE (ARANDELA) ELETRODUTO PVC 3/4" | E62: PT | F62: 7 | G62: 50.28 | H62: 351.96
A63: 10.8 | B63: 74054/002 | C63: SINAPI MAR 2009 | D63: PONTO DE TOMADA (CAIXA, ELETRODUTO, FIOS E TOMADA) | E63: PT | F63: 13 | G63: 57.82 | H63: 751.66
A64: 10.9 | B64: 74054/003 | C64: SINAPI MAR 2009 | D64: PONTO DE TOMADA PARA AR CONDICIONADO (CAIXA, ELETRODUTO, FIOS E TOMADA) | E64: PT | F64: 1 | G64: 113.46 | H64: 113.46
A65: 10.10 | B65: 73917/006 | C65: SINAPI MAR 2009 | D65: PONTO TOMADA BIPOLAR COM CONTATO TERRA 20A/250V COM ELETRODUTO PVC 3/4 E CAIXA 4X2" COM PLACA | E65: PT | F65: 9 | G65: 113.46 | H65: 1021.14
A66: 10.11 | B66: 74130/004 | C66: SINAPI MAR 2009 | D66: DISJUNTOR TERMOMAGNETICO TRIPOLAR PADRAO NEMA (AMERICANO) 10 A 50A 240V, FORNECIMENTO E INSTALACAO | E66: UN | F66: 1 | G66: 49.32 | H66: 49.32
A67: 10.12 | B67: 74130/001 | C67: SINAPI MAR 2009 | D67: DISJUNTOR TERMOMAGNETICO MONOPOLAR PADRAO NEMA (AMERICANO) 10 A 30A 240V, FORNECIMENTO E INSTALACAO | E67: UN | F67: 17 | G67: 7.6 | H67: 129.2
A68: 10.13 | B68: 73953/005 | C68: SINAPI MAR 2009 | D68: LUMINARIA TIPO CALHA, DE SOBREPOR, COM REATOR DE PARTIDA RAPIDA E LAMPADA FLUORESCENTE 1X40W, COMPLETA, FORNECIMENTO E INSTALACAO | E68: UN | F68: 3 | G68: 54.37 | H68: 163.11
A69: 10.14 | B69: 73953/006 | C69: SINAPI MAR 2009 | D69: LUMINARIA TIPO CALHA, DE SOBREPOR, COM REATOR DE PARTIDA RAPIDA E LAMPADA FLUORESCENTE 2X40W, COMPLETA, FORNECIMENTO E INSTALACAO | E69: UN | F69: 28 | G69: 77.24 | H69: 2162.72
A70: 10.15 | B70: 74094/001 | C70: SINAPI MAR 2009 | D70: LUMINARIA TIPO SPOT PARA 1 LAMPADA INCANDESCENTE/FLUORESCENTE COMPACTA | E70: UN | F70: 5 | G70: 17.89 | H70: 89.45
A71: 10.16 | B71: 72273 | C71: SINAPI MAR 2009 | D71: LÂMPADA INCANDESCENTE - 60W - FORNEC e COLOCAÇÃO | E71: UN | F71: 5 | G71: 1.59 | H71: 7.95
A72: 11.0 | D72: INSTALAÇÃO HIDRÁULICA | H72: =SUM(H73:H83) -> 7661.34
A73: 11.1 | B73: 73959/002 | C73: SINAPI MAR 2009 | D73: PONTO DE ÁGUA, INCLUSIVE TUBULAÇÕES E CONEXÕES DE PVC RÍGIDO SOLDÁVEL E ABERTURA DE RASGOS EM ALVENARIA, ATÉ O REGISTRO GERAL DO AMBIENTE | E73: PT | F73: 31 | G73: 42.8 | H73: 1326.8
A74: 11.2 | B74: 73958/001 | C74: SINAPI MAR 2009 | D74: PONTO DE ESGOTO PARA PIA OU LAVANDERIA, INCLUSIVE TUBULAÇÕES E CONEXÕES EM PVC RÍGIDO SOLDÁVEIS, ATÉ A COLUNA OU SUB-COLETOR | E74: PT | F74: 33 | G74: 56.47 | H74: 1863.51
A75: 11.3 | B75: 73947/002 | C75: SINAPI MAR 2009 | D75: LAVATORIO LOUCA BR EMBUTIR(CUBA) MEDIO LUXO S/LADRAO 52X39CM FERRAGENS EM METAL CROMADO SIFAO 1680 1"X1.1/4" TORNEIRA DE PRESSAO 1193 DE 1/2" E VALVULA DE ESCOAMENTO 1600 RABICHO EM PVC FORNECIMENTO | E75: UN | F75: 8 | G75: 120.36 | H75: 962.88
A76: 11.4 | B76: 74101/001 | C76: SINAPI MAR 2009 | D76: VASO SANITARIO, ASSENTO PLASTICO, CAIXA DE DESCARGA PVC DE SOBREPOR, ENGATE PLASTICO, TUBO DE DESCIDA E BOLSA DE BORRACHA | E76: UN | F76: 6 | G76: 129.8 | H76: 778.8
A77: 11.5 | B77: 74050/001 | C77: SINAPI MAR 2009 | D77: PIA ACO INOXIDAVEL 120X60CM COM 1 CUBA - FORNECIMENTO E INSTALACAO | E77: UN | F77: 7 | G77: 133.1 | H77: 931.7
A78: 11.6 | B78: 74050/002 | C78: SINAPI MAR 2009 | D78: PIA ACO INOXIDAVEL 200X60CM COM 2 CUBAS - FORNECIMENTO E INSTALACAO | E78: UN | F78: 2 | G78: 257.3 | H78: 514.6
A79: 11.7 | B79: 73947/003 | C79: SINAPI MAR 2009 | D79: TANQUE LOUCA BRANCA C/COLUNA MED 56X48CM (EM TORNO)INCL ACESSORIOS DE FIX FERRAGENS EM METAL CROMADO TORNEIRA DE PRESSAO 1158 DE 1/2" VALVULA DE ESCOAMENTO 1605 E SIFAO 1680 DE 1.1/4"X1.1/2" - FORNEC | E79: UN | F79: 1 | G79: 188.66 | H79: 188.66
A80: 11.8 | B80: 68061 | C80: SINAPI MAR 2009 | D80: CHUVEIRO PLASTICO BRANCO SIMPLES - FORNECIMENTO E INSTALACAO | E80: UN | F80: 4 | G80: 8.42 | H80: 33.68
A81: 11.9 | B81: 73664 | C81: SINAPI MAR 2009 | D81: REGISTRO DE PRESSÃO COM CANOPLA Ø 15MM (1/2") - FORNECIMENTO E INSTALAÇÃO | E81: UN | F81: 4 | G81: 62.34 | H81: 249.36
A82: 11.10 | B82: 73651 | C82: SINAPI MAR 2009 | D82: REGISTRO DE GAVETA BRUTO Ø 15MM (1/2") - FORNECIMENTO E INSTALAÇÃO | E82: UN | F82: 7 | G82: 24.73 | H82: 173.11
A83: 11.11 | B83: 19.07.146 | C83: EMLURB 2008 | D83: FORNECIMENTO DE CAIXA D'AGUA ELEVADA DE PVC, COM TAMPA, CAPACIDADE PARA 1000 LITROS, INCLUSIVE COLOCACAO | E83: UN | F83: 2 | G83: 319.12 | H83: 638.24
A84: 12.0 | D84: ESQUADRIAS | H84: =SUM(H85:H90) -> 
A85: 12.1 | B85: 73910/005 | C85: SINAPI MAR 2009 | D85: PORTA DE MADEIRA EM COMPENSADO LISA 0,80X2,10 | E85: UN | F85: 7 | G85: 226.31 | H85: 1584.17
A86: 12.2 | B86: 73910/010 | C86: SINAPI MAR 2009 | D86: PORTA DE MADEIRA EM COMPENSADO LISA 0,90X2,10 | E86: UN | F86: 3 | G86: 227.96 | H86: =ROUND(F86*G86,2) -> 683.88
A87: 12.3 | B87: 73933/002 | C87: SINAPI MAR 2009 | D87: PORTA EM CHAPA DE FERRO INCLUINDO GUARNIÇOES | E87: M² | F87: ='Mem calc '!#REF! ->  | G87: 215.7 | H87: =ROUND(F87*G87,2) -> 
A88: 12.4 | B88: 68050 | C88: SINAPI MAR 2009 | D88: PORTA DE CORRER EM ALUMINIO, PERFIL SERIE 25, COM 02 FOLHAS PARA VIDRO | E88: M² | F88: ='Mem calc '!#REF! ->  | G88: 222.2 | H88: =ROUND(F88*G88,2) -> 
A89: 12.5 | B89: 73945/001 | C89: SINAPI MAR 2009 | D89: JANELA DE CHAPA DOBRADA ACO DE CORRER, DUAS FOLHAS | E89: M² | F89: ='Mem calc '!#REF! ->  | G89: 170.55 | H89: =ROUND(F89*G89,2) -> 
A90: 12.6 | B90: 72117 | C90: SINAPI MAR 2009 | D90: VIDRO COMUM TRANSPARENTE COM 4MM | E90: M² | F90: 8.35 | G90: 49.7 | H90: =ROUND(F90*G90,2) -> 415
A91: 13.0 | D91: DIVERSOS | H91: =SUM(H92:H92) -> 
A92: 13.1 | B92: 73986/001 | C92: SINAPI MAR 2009 | D92: FORRO DE GESSO EM PLACAS 60X60CM, ESPESSURA 1,2CM, INCLUSIVE FIXACAO | E92: M² | F92: ='Mem calc '!#REF! ->  | G92: 12.12 | H92: =ROUND(F92*G92,2) -> 
A93: A - TOTAL PRÉDIO PRINCIPAL | H93: =H91+H84+H72+H55+H49+H44+H41+H35+H32+H28+H25+H22+H18 -> 
A94: PASSEIOS, ACESSIBILIDADE E URBANIZAÇÃO
A95: 1.0 | D95: MOVIMENTO DE TERRA | H95: =SUM(H96:H97) -> 
A96: 1.1 | B96: 73965/010 | C96: SINAPI MAR 2009 | D96: ESCAVAÇÃO MANUAL DE VALAS PARA FUNDAÇÃO | E96: M³ | F96: ='Mem calc '!#REF! ->  | G96: 19.67 | H96: =ROUND(F96*G96,2) -> 
A97: 1.2 | B97: 55835 | C97: SINAPI MAR 2009 | D97: ATERRO INTERNO (EDIFICACOES) COMPACTADO MANUALMENTE | E97: M³ | F97: ='Mem calc '!#REF! ->  | G97: 19.67 | H97: =ROUND(F97*G97,2) -> 
A98: 2.0 | D98: ELEVAÇÃO | H98: =SUM(H99:H101) -> 
A99: 2.1 | B99: 73987/001 | C99: SINAPI MAR 2009 | D99: ALVENARIA EM TIJOLO CERAMICO FURADO 10X20X20CM, 1 VEZ, ASSENTADO EM ARGAMASSA TRACO 1:2:8 (CIMENTO, CAL E AREIA), JUNTAS 12MM | E99: M² | F99: ='Mem calc '!#REF! ->  | G99: 42.03 | H99: =ROUND(F99*G99,2) -> 
A100: 2.2 | B100: 74053/002 | C100: SINAPI MAR 2009 | D100: ALVENARIA EM PEDRA RACHAO OU PEDRA DE MAO, ASSENTADA COM ARGAMASSA TRAÇO 1:8 (CIMENTO E AREIA) | E100: M³ | F100: ='Mem calc '!#REF! ->  | G100: 212.96 | H100: =ROUND(F100*G100,2) -> 
A101: 13.2 | B101: 07.03.010 | C101: EMLURB 2008 | D101: MURO COM EMBASAMENTO DE 50CM E ALTURA DA ALVENARIA DE ELEVACAO DE 1,6M, COM COLUNAS ESPACADAS DE 3 EM 3 METROS, INCLUSIVE CHAPISCO, MASSA UNICA E CAIACAO, E AINDA ESCAVACAO, REATERRO, REMOCAO DE MATERIAL ESCAVADO E CONCRETO MAGRO. | E101: M | F101: ='Mem calc '!#REF! ->  | G101: 129.36 | H101: =ROUND(F101*G101,2) -> 
A102: 3.0 | D102: PASSEIOS | H102: =SUM(H103:H105) -> 
A103: 3.1 | B103: 74115/001 | C103: SINAPI MAR 2009 | D103: CONCRETO PARA LASTRO DE PISO (ESPESSURA 7CM) | E103: M³ | F103: ='Mem calc '!#REF! ->  | G103: 242.84 | H103: =ROUND(F103*G103,2) -> 
A104: 3.2 | B104: Co | C104: Co | D104: PASSEIO EM BLOCO INTERTRAVADO NA COR NATURAL 0,10X0,20X0,06 ASSENTADO SOBRE COLCHÃO DE AREIA COM 5 CM DE ESPESSURA, INCLUSIVE COLCHÂO DE AREIA. | E104: M² | F104: ='Mem calc '!#REF! ->  | G104: 38.58 | H104: =ROUND(F104*G104,2) -> 
A105: 3.3 | B105: 9691 | C105: SINAPI MAR 2009 | D105: PISO EM GRANILITE BRANCO, INCLUSO JUNTAS DE DILATACAO PLASTICAS E POLIMENTO MECANIZADO | E105: M² | F105: ='Mem calc '!#REF! ->  | G105: 48.69 | H105: =ROUND(F105*G105,2) -> 
A106: 4.0 | D106: REVESTIMENTO | H106: =SUM(H107:H108) -> 
A107: 4.1 | B107: 73928/002 | C107: SINAPI MAR 2009 | D107: CHAPISCO COM ARGAMSSA DE CIMENTO E AREIA TRAÇO 1:3 | E107: M² | F107: ='Mem calc '!#REF! ->  | G107: 2.85 | H107: =ROUND(F107*G107,2) -> 
A108: 4.2 | B108: 11.05.010 | C108: EMLURB 2008 | D108: REVESTIMENTO COM ARGAMASSA DE CIMENTO E ARIEA NO TRAÇO 1:3 COM 2,0 CM DE ESPESSURA | E108: M² | F108: ='Mem calc '!#REF! ->  | G108: 15.51 | H108: =ROUND(F108*G108,2) -> 
A109: 5.0 | D109: PAVIMENTAÇÃO | H109: =SUM(H110:H110) -> 
A110: 5.1 | B110: 20.09.022 | C110: DER MAR/2009 | D110: FORNECIMENTO E ASSENTAMENTO DE MEIO-FIO DE CONCRETO PRE MOLDADO,DIMENSOES (1.00 X 0.25 X 0.10)M, REJUNTADO COM ARGAMASSA DE CIMENTO E AREIA 1 2 | E110: M | F110: ='Mem calc '!#REF! ->  | G110: 16.18 | H110: =G110*F110 -> 
A111: 6.0 | D111: DIVERSOS | H111: =SUM(H112:H114) -> 
A112: 6.1 | B112: 74072/003 | C112: SINAPI MAR 2009 | D112: CORRIMAO EM TUBO ACO GALVANIZADO 1 1/4" COM BRACADEIRA | E112: M | F112: ='Mem calc '!#REF! ->  | G112: 45.63 | H112: =ROUND(F112*G112,2) -> 
A113: 6.2 | B113: 73932/001 | C113: SINAPI MAR 2009 | D113: GRADE DE FERRO EM BARRA CHATA 3/16" | E113: M² | F113: 69.84 | G113: 193.9 | H113: =ROUND(F113*G113,2) -> 13541.98
A114: 6.3 | B114: 73933/004 | C114: SINAPI MAR 2009 | D114: PORTA DE FERRO DE ABRIR, BARRA CHATA COM REQUADRO E GUARNIÇÃO | E114: M² | F114: ='Mem calc '!#REF! ->  | G114: 172.86 | H114: =ROUND(F114*G114,2) -> 
A115: B - TOTAL PASSEIOS, ACESSIBILIDADE E URBANIZAÇÃO | H115: =H95+H98+H102+H106+H109+H111 -> 
A116: DEPÓSITO DE LIXO
A117: 1.0 | D117: MOVIMENTO DE TERRA | H117: =SUM(H118:H119) -> 
A118: 1.1 | B118: 73965/010 | C118: SINAPI MAR 2009 | D118: ESCAVAÇÃO MANUAL DE VALAS PARA FUNDAÇÃO | E118: M³ | F118: ='Mem calc '!#REF! ->  | G118: 19.67 | H118: =ROUND(F118*G118,2) -> 
A119: 1.2 | B119: 55835 | C119: SINAPI MAR 2009 | D119: ATERRO INTERNO (EDIFICACOES) COMPACTADO MANUALMENTE | E119: M³ | F119: ='Mem calc '!#REF! ->  | G119: 19.67 | H119: =ROUND(F119*G119,2) -> 
A120: 2.0 | D120: ELEVAÇÃO | H120: =SUM(H121:H123) -> 
A121: 2.1 | B121: 74053/001 | C121: SINAPI MAR 2009 | D121: ALVENARIA EM PEDRA RACHAO OU PEDRA DE MAO, ASSENTADA COM ARGAMASSA TRAÇO 1:8 (CIMENTO E AREIA) | E121: M130 | F121: ='Mem calc '!#REF! ->  | G121: 211.96 | H121: =ROUND(F121*G121,2) -> 
A122: 2.2 | B122: 73987/001 | C122: SINAPI MAR 2009 | D122: ALVENARIA EM TIJOLO CERAMICO FURADO 10X20X20CM, 1 VEZ, ASSENTADO EM ARGAMASSA TRACO 1:2:8 (CIMENTO, CAL E AREIA), JUNTAS 12MM | E122: M² | F122: ='Mem calc '!#REF! ->  | G122: 42.03 | H122: =ROUND(F122*G122,2) -> 
A123: 2.3 | B123: 73982/001 | C123: SINAPI MAR 2009 | D123: ALVENARIA EM TIJOLO CERAMICO FURADO 10X20X20CM, 1/2 VEZ, ASSENTADO EM ARGAMASSA TRACO 1:2:8 (CIMENTO, CAL E AREIA), JUNTAS 12MM | E123: M² | F123: ='Mem calc '!#REF! ->  | G123: 26.14 | H123: =ROUND(F123*G123,2) -> 
A124: 3.0 | D124: COBERTURA | H124: =SUM(H125) -> 
A125: 3.1 | B125: 74202/001 | C125: SINAPI MAR 2009 | D125: LAJE PRE-MOLDADA P/FORRO, SOBRECARGA 100KG/M2, VAOS ATE 3,50M/E=8CM, C/LAJOTAS E CAP.C/CONC FCK=20MPA, 3CM, INTER-EIXO 38CM, C/ESCORAMENTO (REAPR.3X) E FERRAGEM NEGATIVA | E125: M² | F125: ='Mem calc '!#REF! ->  | G125: 46.24 | H125: =ROUND(F125*G125,2) -> 
A126: 4.0 | D126: PISO | H126: =SUM(H127:H128) -> 
A127: 4.1 | B127: 74115/001 | C127: SINAPI MAR 2009 | D127: CONCRETO PARA LASTRO DE PISO (ESPESSURA 7CM) | E127: M³ | F127: ='Mem calc '!#REF! ->  | G127: 242.84 | H127: =ROUND(F127*G127,2) -> 
A128: 4.2 | B128: 74108/001 | C128: SINAPI MAR 2009 | D128: PISO CERAMICO GRES 1A PEI-4 30X30CM, ASSENTADO COM ARGAMASSA TRACO 1:4 | E128: M² | F128: ='Mem calc '!#REF! ->  | G128: 28.34 | H128: =ROUND(F128*G128,2) -> 
A129: 5.0 | D129: REVESTIMENTOS | H129: =SUM(H130:H133) -> 
A130: 5.1 | B130: 73928/002 | C130: SINAPI MAR 2009 | D130: CHAPISCO COM ARGAMSSA DE CIMENTO E AREIA TRAÇO 1:3 | E130: M² | F130: ='Mem calc '!#REF! ->  | G130: 2.85 | H130: =ROUND(F130*G130,2) -> 
A131: 5.2 | B131: 11.05.010 | C131: EMLURB 2008 | D131: REVESTIMENTO COM ARGAMASSA DE CIMENTO E ARIEA NO TRAÇO 1:3 COM 2,0 CM DE ESPESSURA | E131: M² | F131: ='Mem calc '!#REF! ->  | G131: 15.51 | H131: =ROUND(F131*G131,2) -> 
A132: 5.3 | B132: 73927/002 | C132: SINAPI MAR 2009 | D132: EMBOCO TRACO 1:4 (CIMENTO E AREIA), ESPESSURA 2,0CM, PREPARO MANUAL | E132: M² | F132: ='Mem calc '!#REF! ->  | G132: 13.19 | H132: =ROUND(F132*G132,2) -> 
A133: 5.4 | B133: 73912/002 | C133: SINAPI MAR 2009 | D133: CERAMICA ESMALTADA EM PAREDES 1A, PEI-4, 20X20CM, PADRAO ALTO, FIXADA COM ARGAMASSA COLANTE E REJUNTAMENTO COM CIMENTO BRANCO | E133: M² | F133: ='Mem calc '!#REF! ->  | G133: 18.92 | H133: =ROUND(F133*G133,2) -> 
A134: 6.0 | D134: ESQUADRIAS | H134: =SUM(H135) -> 
A135: 6.1 | B135: 73932/001 | C135: SINAPI MAR 2009 | D135: GRADE DE FERRO EM BARRA CHATA 3/16" | E135: M² | F135: ='Mem calc '!#REF! ->  | G135: 193.9 | H135: =ROUND(F135*G135,2) -> 
A136: 7.0 | D136: PINTURA | H136: =SUM(H137:H138) -> 
A137: 7.1 | B137: 73954/002 | C137: SINAPI MAR 2009 | D137: PINTURA LATÉX ACRÍLICA EXTERNA | E137: M² | F137: ='Mem calc '!#REF! ->  | G137: 9.3 | H137: =ROUND(F137*G137,2) -> 
A138: 7.2 | B138: 74145/001 | C138: SINAPI MAR 2009 | D138: PINTURA EM ESMALTE SINTETICO EM PECAS METALICAS UTILIZANDO REVOLVER/COMPRESSOR, DUAS DEMAOS, INCLUSO UMA DEMAO FUNDO OXIDO DE FERRO/ZARCAO | E138: M² | F138: ='Mem calc '!#REF! ->  | G138: 9.87 | H138: =ROUND(F138*G138,2) -> 
A139: 8.0 | D139: INSTALAÇÕES ELÉTRICAS | H139: =SUM(H140:H141) -> 
A140: 8.1 | B140: 74054/001 | C140: SINAPI MAR 2009 | D140: PONTO DE LUZ (CAIXA, ELETRODUTO, FIOS E INTERRUPTOR) | E140: PT | F140: ='Mem calc '!#REF! ->  | G140: 9.3 | H140: =ROUND(F140*G140,2) -> 
A141: 8.2 | B141: 72273 | C141: SINAPI MAR 2009 | D141: LÂMPADA INCANDESCENTE - 60W - FORNEC e COLOCAÇÃO | E141: UN | F141: ='Mem calc '!#REF! ->  | G141: 1.59 | H141: =ROUND(F141*G141,2) -> 
A142: C - TOTAL DEPÓSITO DE LIXO E CENTRAL DE GÁS | H142: =H139+H136+H134+H129+H126+H124+H120+H117 -> 
A144: TOTAL GERAL A + B + C | H144: =H93+H115+H142 -> 

Sheet PLANILHA Obras + Bom
A5: OBRA: Recuperação da adutora do Garça | E5: REFERÊNCIA: SINAPI Agosto 2017 e Emlurb Dezembro 2014 (Sem Desoneração)
A7: LOCAL: Ilha do Saco (Barra), Zona Rural do Município - Santa Maria da Boa Vista/PE | E7: BDI: | F7: 0.1387 | G7: (materiais) | H7: (seviços) | I7: =BDI!E29+1 -> 1.1981
A9: PLANILHA ORÇAMENTÁRIA | I9: 1.1387
A11: ITEM | B11: CÓDIGO | C11: FONTE | D11: DISCRIMINAÇÃO DOS SERVIÇOS | E11: UND | F11: QUANT. | G11: PREÇO UNIT S/ BDI | H11: PREÇO TOTAL C/ BDI
A12: 1 | D12: SERVIÇOS PRELIMINARES
A13: 1.1 | B13: COMPOSIÇAO | D13: MOBILIZAÇÃO | E13: unid | F13: 1 | G13: =CPU!H15 -> 2102.04 | H13: =ROUND((F13*G13),2) -> 2102.04
A14: 1.2 | B14: COMPOSIÇAO | D14: DESMOBILIZAÇÃO | E14: unid | F14: 1 | G14: =CPU!H40 -> 2102.04 | H14: =ROUND((F14*G14),2) -> 2102.04
A15: 1.3 | B15: COMPOSIÇAO | D15: ADMISTRAÇÃO LOCAL | E15: unid | F15: 1 | G15: =CPU!H66 -> 41029.44 | H15: 41029.44
A16: 1.4 | B16: 74209/1 | C16: SINAPI | D16: PLACA DE OBRA EM CHAPA DE ACO GALVANIZADO | E16: m² | F16: 6 | G16: 364.69 | H16: 2188.14
A17: 1.5 | B17: 73847/1 | C17: SINAPI | D17: ALUGUEL CONTAINER/ESCRIT INCL INST ELET LARG=2,20 COMP=6,20M ALT=2,50M CHAPA ACO C/NERV TRAPEZ FORRO C/ISOL TERMO/ACUSTICO CHASSIS REFORCADO COM CUSTOS HORÁRIOS DE MÁQUINAS E EQUIPAMENTOS | E17: mêS | F17: 6 | G17: 514.8 | H17: 3088.8
A18: 1.6 | B18: 73859/2 | C18: SINAPI | D18: CAPINA E LIMPEZA MANUAL DE TERRENO | E18: m² | F18: 3016 | G18: 1.33 | H18: 4011.28
A19: 1.7 | B19: 93362 | C19: SINAPI | D19: REATERRO MECANIZADO DE VALA COM ESCAVADEIRA HIDRÁULICA (CAPACIDADE DA CAÇAMBA: 0,8 M³ / POTÊNCIA: 111 HP), LARGURA DE 1,5 A 2,5 M, PROFUNDIDADE DE 1,5 A 3,0 M, COM SOLO (SEM SUBSTITUIÇÃO) DE 1ª CATEGORIA EM LOCAIS COM ALTO NÍVEL DE INTERFERÊNCIA. AF_04/2016 | E19: m³ | F19: 30 | G19: 11.21 | H19: 336.3
A20: 1.8 | B20: 90085 | C20: SINAPI | D20: ESCAVAÇÃO MECANIZADA DE V HIDRÁULICA (0,8 M3/111 HP), LARG. DE 1,5 M A 2,5 M, EM SOLO DE 1A CATALA COM PROF. MAIOR QUE 1,5 M ATÉ 3,0 M (MÉDIA ENTRE MONTANTE E JUSANTE/UMA COMPOSIÇÃO POR TRECHO), COM ESCAVADEIRA EGORIA, EM LOCAIS COM ALTO NÍVEL DE INTERFERÊNCIA. AF_01/2015 | E20: m³ | F20: 200 | G20: 9.69 | H20: 1938
A21: 2 | D21: ESTRUTURA
D22: ESTRUTURA
A23: 2.1 | B23: 92264 | C23: SINAPI | D23: FABRICAÇÃO DE FÔRMA PARA PILARES E ESTRUTURAS SIMILARES, EM CHAPA DE MADEIRA COMPENSADA PLASTIFICADA, E = 18 MM. AF_12/2015 | E23: m² | F23: 2.2 | G23: 123.57 | H23: =ROUND((F23*G23),2) -> 271.85
A24: 2.2 | B24: 73990/1 | C24: SINAPI | D24: ARMACAO ACO CA-50 P/1,0M3 DE CONCRETO | E24: um | F24: 0.07 | G24: 594.9 | H24: 41.64
A25: 2.3 | B25: 92718 | C25: SINAPI | D25: CONCRETAGEM DE PILARES, FCK = 25 MPA, COM USO DE BALDES EM EDIFICAÇÃO COM SEÇÃO MÉDIA DE PILARES MENOR OU IGUAL A 0,25 M² - LANÇAMENTO, ADENSAMENTO E ACABAMENTO. AF_12/2015 | E25: m³ | F25: 0.07 | G25: 511.96 | H25: 35.84
A26: 2.4 | B26: 92412 | C26: SINAPI | D26: MONTAGEM E DESMONTAGEM DE FÔRMA DE PILARES RETANGULARES E ESTRUTURAS SIMILARES COM ÁREA MÉDIA DAS SEÇÕES MENOR OU IGUAL A 0,25 M², PÉ-DIREITO SIMPLES, EM MADEIRA SERRADA, 4 UTILIZAÇÕES. AF_12/2015 | E26: m² | F26: 2.2 | G26: 72.69 | H26: 159.92
A27: 2.5 | B27: 92265 | C27: SINAPI | D27: FABRICAÇÃO DE FÔRMA PARA VIGAS, EM CHAPA DE MADEIRA COMPENSADA RESINADA, E = 17 MM. AF_12/2015 | E27: m² | F27: 2.66 | G27: 82.3 | H27: 218.92
A28: 2.6 | B28: 73990/1 | C28: SINAPI | D28: ARMACAO ACO CA-50 P/1,0M3 DE CONCRETO | E28: um | F28: 0.11 | G28: 594.9 | H28: 65.44
A29: 2.7 | B29: 92725 | C29: SINAPI | D29: CONCRETAGEM DE VIGAS E LAJES, FCK=20 MPA, PARA LAJES MACIÇAS OU NERVURADAS COM USO DE BOMBA EM EDIFICAÇÃO COM ÁREA MÉDIA DE LAJES MENOR OU IGUAL A 20 M² - LANÇAMENTO, ADENSAMENTO E ACABAMENTO. AF_12/2015 | E29: m³ | F29: 0.11 | G29: 407.52 | H29: 44.83
A30: 2.8 | B30: 92448 | C30: SINAPI | D30: MONTAGEM E DESMONTAGEM DE FÔRMA DE VIGA, ESCORAMENTO COM PONTALETE DE MADEIRA, PÉ-DIREITO SIMPLES, EM MADEIRA SERRADA, 4 UTILIZAÇÕES. AF_12/2015 | E30: m² | F30: 2.66 | G30: 89.39 | H30: 237.78
A31: 2.9 | B31: 83730 | C31: SINAPI | D31: REPARO ESTRUTURAL DE ESTRUTURAS DE CONCRETO COM ARGAMASSA POLIMERICA DE ALTO DESEMPENHO, E=2 CM | E31: m² | F31: 10.01 | G31: 256.09 | H31: 2563.46
A32: 3 | D32: REVESTIMENTOS - PISOS, PAREDES E TETOS
D33: PISO
A34: 3.1 | B34: 87630 | C34: SINAPI | D34: CONTRAPISO EM ARGAMASSA TRAÇO 1:4 (CIMENTO E AREIA), PREPARO MECÂNICO COM BETONEIRA 400 L, APLICADO EM ÁREAS SECAS SOBRE LAJE, ADERIDO, ESPESSURA 3CM. AF_06/2014 | E34: m² | F34: 428.4 | G34: 32.18 | H34: =ROUND((F34*G34),2) -> 13785.91
D35: PAREDE
A36: 3.2 | B36: 87905 | C36: SINAPI | D36: CHAPISCO APLICADO EM ALVENARIA (COM PRESENÇA DE VÃOS) E ESTRUTURAS DE CONCRETO DE FACHADA, COM COLHER DE PEDREIRO. ARGAMASSA TRAÇO 1:3 COM PREPARO EM BETONEIRA 400L. AF_06/2014 | E36: m² | F36: =(481.22)*0.7 -> 336.85 | G36: 6.7 | H36: 2256.9
A37: 3.3 | B37: 88485 | C37: SINAPI | D37: APLICAÇÃO DE FUNDO SELADOR ACRÍLICO EM PAREDES, UMA DEMÃO. AF_06/2014 | E37: m² | F37: =F36 -> 336.85 | G37: 2.18 | H37: 734.33
A38: 3.4 | B38: 88489 | C38: SINAPI | D38: APLICAÇÃO MANUAL DE PINTURA COM TINTA LÁTEX ACRÍLICA EM PAREDES, DUAS DEMÃOS. AF_06/2014 | E38: m² | F38: =F36 -> 336.85 | G38: 11.31 | H38: 3809.77
A39: 3.5 | B39: 88495 | C39: SINAPI | D39: APLICAÇÃO E LIXAMENTO DE MASSA LÁTEX EM PAREDES, UMA DEMÃO. AF_06/2014 | E39: m² | F39: =236.66*0.7 -> 165.66 | G39: 7.99 | H39: 1323.62
A40: 3.6 | B40: 73937/1 | C40: SINAPI | D40: COBOGO DE CONCRETO (ELEMENTO VAZADO), 7X50X50CM, ASSENTADO COM ARGAMASSA TRACO 1:4 (CIMENTO E AREIA) | E40: m² | F40: 31.91 | G40: 119.91 | H40: 3826.33
A41: 4 | D41: ESQUARIAS
D42: FERRO
A43: 4.1 | B43: 74064/2 | C43: SINAPI | D43: FUNDO ANTICORROSIVO A BASE DE OXIDO DE FERRO (ZARCAO), UMA DEMAO | E43: m² | F43: 22 | G43: 13.07 | H43: =ROUND((F43*G43),2) -> 287.54
A44: 4.2 | B44: 73924/1 | C44: SINAPI | D44: PINTURA ESMALTE ALTO BRILHO, DUAS DEMAOS, SOBRE SUPERFICIE METALICA | E44: m² | F44: 22 | G44: 25.52 | H44: 561.44
A45: 4.3 | B45: 68054 | C45: SINAPI | D45: PORTAO DE FERRO EM CHAPA GALVANIZADA PLANA 14 GSG | E45: m² | F45: 11 | G45: 230.57 | H45: 2536.27
A46: 4.4 | B46: 74072/3 | C46: SINAPI | D46: CORRIMAO EM TUBO ACO GALVANIZADO 1 1/4" COM BRACADEIRA INCLUINDO FUNDO PREPARADOR ANTICORROSIVO E PINTURA ESMALTE SINTETICO | E46: m | F46: 90 | G46: 87.52 | H46: 7876.8
A47: 4.5 | B47: 73665 | C47: SINAPI | D47: ESCADA TIPO MARINHEIRO EM ACO CA-50 9,52MM INCLUSO PINTURA COM FUNDO ANTICORROSIVO TIPO ZARCAO | E47: m | F47: 13 | G47: 63.37 | H47: 823.81
D48: COBERTA
A49: 4.6 | B49: 92580 | C49: SINAPI | D49: TRAMA DE AÇO COMPOSTA POR TERÇAS PARA TELHADOS DE ATÉ 2 ÁGUAS PARA TELHA ONDULADA DE FIBROCIMENTO, METÁLICA, PLÁSTICA OU TERMOACÚSTICA, INCLUSO TRANSPORTE VERTICAL. AF_12/2015 | E49: m² | F49: 144.16 | G49: 32.05 | H49: 4620.33
A50: 4.7 | B50: 94213 | C50: SINAPI | D50: TELHAMENTO COM TELHA DE AÇO/ALUMÍNIO E = 0,5 MM, COM ATÉ 2 ÁGUAS, INCLUSO IÇAMENTO. AF_06/2016 | E50: m² | F50: 144.16 | G50: 46.22 | H50: 6663.08
A51: 4.8 | B51: 75220 | C51: SINAPI | D51: CUMEEIRA EM PERFIL ONDULADO DE ALUMÍNIO | E51: m | F51: 14.4 | G51: 37.19 | H51: 535.54
A52: 4.9 | B52: 94228 | C52: SINAPI | D52: CALHA EM CHAPA DE AÇO GALVANIZADO NÚMERO 24, DESENVOLVIMENTO DE 50 CM, INCLUSO TRANSPORTE VERTICAL. AF_06/2016 | E52: m | F52: 37.4 | G52: 63.18 | H52: 2362.93
A53: 5 | D53: INSTALAÇÕES ELETRICAS
D54: PADRÃO DE ENTRADA TRIFÁSICO 125A AÉREO
A55: 5.1 | B55: 74131/4 | C55: SINAPI | D55: QUADRO DE DISTRIBUICAO DE ENERGIA DE EMBUTIR, EM CHAPA METALICA, PARA 18 DISJUNTORES TERMOMAGNETICOS MONOPOLARES, COM BARRAMENTO TRIFASICO E NEUTRO, FORNECIMENTO E INSTALACAO | E55: um | F55: 1,00 | G55: 410.28 | H55: =ROUND((F55*G55),2) -> 410.28
A56: 5.2 | B56: 93654 | C56: SINAPI | D56: DISJUNTOR MONOPOLAR TIPO DIN, CORRENTE NOMINAL DE 16A - FORNECIMENTO E INSTALAÇÃO. AF_04/2016 | E56: um | F56: 9 | G56: 14.25 | H56: 128.25
A57: 5.3 | B57: 93672 | C57: SINAPI | D57: DISJUNTOR TRIPOLAR TIPO DIN, CORRENTE NOMINAL DE 40A - FORNECIMENTO E INSTALAÇÃO. AF_04/2016 | E57: um | F57: 1 | G57: 101.4 | H57: 101.4
A58: 5.4 | B58: 74131/1 | C58: SINAPI | D58: QUADRO DE DISTRIBUICAO DE ENERGIA DE EMBUTIR, EM CHAPA METALICA, PARA 3 DISJUNTORES TERMOMAGNETICOS MONOPOLARES SEM BARRAMENTO FORNECIMENTO E INSTALACAO | E58: um | F58: 1 | G58: 62.42 | H58: 62.42
A59: 5.5 | B59: 93670 | C59: SINAPI | D59: DISJUNTOR TRIPOLAR TIPO DIN, CORRENTE NOMINAL DE 25A - FORNECIMENTO E INSTALAÇÃO. AF_04/2016 | E59: um | F59: 1 | G59: 92.79 | H59: 92.79
D60: PONTOS ELÉTRICOS
A61: 5.6 | B61: 74082/1 | C61: SINAPI | D61: REFLETOR REDONDO EM ALUMINIO COM SUPORTE E ALCA REGULAVEL PARA FIXACAO, COM LAMPADA VAPOR DE MERCURIO 250W | E61: UN | F61: 6 | G61: 340.84 | H61: 2045.04
A62: 5.7 | B62: 93128 | C62: SINAPI | D62: PONTO DE ILUMINAÇÃO RESIDENCIAL INCLUINDO INTERRUPTOR SIMPLES, CAIXA E LÉTRICA, ELETRODUTO, CABO, RASGO, QUEBRA E CHUMBAMENTO (EXCLUINDO LUMINÁRIA E LÂMPADA). AF_01/2016 | E62: UN | F62: 6 | G62: 115.74 | H62: 694.44
A63: 5.8 | B63: 93139 | C63: SINAPI | D63: PONTO DE ILUMINAÇÃO RESIDENCIAL INCLUINDO INTERRUPTOR PARALELO (2 MÓDULOS), CAIXA ELÉTRICA, ELETRODUTO, CABO, RASGO, QUEBRA E CHUMBAMENTO (EXCLUINDO LUMINÁRIA E LÂMPADA). AF_01/2016 | E63: UN | F63: 4 | G63: 166.13 | H63: 664.52
A64: 5.9 | B64: 73953/1 | C64: SINAPI | D64: LUMINARIA TIPO CALHA, DE SOBREPOR, COM REATOR DE PARTIDA RAPIDA E LAMPADA FLUORESCENTE 1X20W, COMPLETA, FORNECIMENTO E INSTALACAO | E64: UN | F64: 4 | G64: 82.14 | H64: 328.56
A65: 5.10 | B65: 93008 | C65: SINAPI | D65: ELETRODUTO RÍGIDO ROSCÁVEL, PVC, DN 50 MM (1 1/2") - FORNECIMENTO E INSTALAÇÃO. AF_12/2015 | E65: m | F65: 80 | G65: 12.56 | H65: 1004.8
A66: 5.11 | B66: 05.01.010 | C66: EMLURB | D66: ESCAVACAO MANUAL EM TERRA ATE 1,50 M DE PROFUNDIDADE, SEM ESCORAMENTO. | E66: m³ | F66: 12 | G66: 22.09 | H66: 265.08
A67: 5.12 | B67: 83443 | C67: SINAPI | D67: CAIXA DE PASSAGEM 20X20X25 FUNDO BRITA COM TAMPA | E67: UN | F67: 8 | G67: 47.24 | H67: 377.92
A68: 5.13 | B68: 92980 | C68: SINAPI | D68: CABO DE COBRE FLEXÍVEL ISOLADO, 10 MM², ANTI-CHAMA 0,6/1,0 KV, PARA DISTRIBUIÇÃO - FORNECIMENTO E INSTALAÇÃO. AF_12/2015 | E68: m | F68: 350 | G68: 7.74 | H68: 2709
A69: 5.14 | B69: 92008 | C69: SINAPI | D69: TOMADA BAIXA DE EMBUTIR (2 MÓDULOS), 2P+T 10 A, INCLUINDO SUPORTE E PLACA - FORNECIMENTO E INSTALAÇÃO. AF_12/2015 | E69: UN | F69: 8 | G69: 40.9 | H69: 327.2
A70: 5.15 | B70: 93143 | C70: SINAPI | D70: PONTO DE TOMADA RESIDENCIAL INCLUINDO TOMADA 20A/250V, CAIXA ELÉTRICA, ELETRODUTO, CABO, RASGO, QUEBRA E CHUMBAMENTO. AF_01/2016 | E70: UN | F70: 8 | G70: 142.97 | H70: 1143.76
A71: 6 | D71: SISTEMA DE BOMBEAMENTO E INSTALAÇÕES ELETRICAS
A72: 6.1 | B72: COTAÇÃO | C72: MERCADO | D72: CONJUNTO MOTOR BOMBA, MOTOR TRIFÁSICO (caracteristicas minimas: 125 CV, 400 M³/H, 50 MCA, 380 V, 4 POLOS, 1780 RPM, 60 HZ ALTO RENDIMENTO, IP-55, MONOBLOCO 300 MM), MONTADO EM FLUTUANTE EM PRFV, COM CAPOTA E SAIDA FLANGEADA, CHAVE DE PARTIDA TRIFÁSICA SOFT STARTE 125 CV, 380 V / 60 HZ | E72: UN | F72: 3 | G72: =ROUND((Plan2!I22*I7),2) -> 121247.72 | H72: 363755.67
A73: 6.2 | B73: COTAÇÃO | C73: MERCADO | D73: KIT SISTEMA DE ADUÇÃO: 1 MANGOTE DN250MM X 10 M, 2 ADAPTADOR TIPO ROSCAXRANHURA DE 10", 2 FLANGE DE 10" EM FERRO FUNDIDO, 4 ABRAÇADEIRA DE 10", 1 BOIA DE SUSTENTAÇÃO PARA CONJUNTO FLEXIVEL | E73: CJ | F73: 3 | G73: =ROUND((Plan2!I23*I9),2) -> 11034 | H73: 34829.97
A74: 6.3 | B74: COMPOSIÇÃO | D74: ='[6]ESTIMATIVA - 2017'!$B$12 -> Painel de comando, proteção dos motores elétricos conforme especificado | E74: unid | F74: 1 | G74: 122031.82 | H74: =F74*G74 -> 122031.82
A75: 6.4 | B75: COMPOSIÇÃO | D75: ='[6]ESTIMATIVA - 2017'!$B$15 -> Projeto executivo e "AS BUILT", comissionamento e start-up | E75: unid | F75: 1 | G75: 142.6 | H75: =F75*G75 -> 142.6
A76: 6.5 | B76: COMPOSIÇÃO | D76: Subestação AEREA 300 KVA com projeto executivo aprovado pela concessionária CELPE e sistema de medição | E76: UN | F76: 1 | G76: 57664.45 | H76: =F76*G76 -> 57664.45
A77: 7 | D77: ASSENTAMENTO TUBULAÇÃO
A78: 7.1 | B78: COMPOSIÇÃO | D78: ASSENTAMENTO/MONTAGEM DE TIBULAÇÃO EM PVC Defofo | E78: M | F78: 126 | G78: =CPU!H112 -> 7.81 | H78: =ROUND((F78*G78),2) -> 984.06
A79: 7.2 | B79: COMPOSIÇÃO | D79: ASSENTAMENTO/MONTAGEM DE TIBULAÇÃO EM AÇO CARBONO | E79: M | F79: 45 | G79: =CPU!H89 -> 23.66 | H79: =ROUND((F79*G79),2) -> 1064.7
A81: TOTAL | H81: =SUM(H13:H79) -> 703269.05

Sheet Planilha1 (hidden)
B8: Composição | C8: PIA DE AÇO INOX (2.00X0.55)m C/ 2 CUBAS E ACESSÓRIOS
B9: Preço Adotado: 1.068,85 | F9: Unid: UN
B10: Código | C10: Descrição | D10: Unidade | E10: Coeficiente | F10: Preço | G10: Total
B11: MÃO DE OBRA
B12: 88316 | C12: SERVENTE COM ENCARGOS COMPLEMENTARES | D12: H | E12: 2.5 | F12: 15.68 | G12: =E12*F12 -> 39.2
B13: 88267 | C13: ENCANADOR OU BOMBEIRO HIDRÁULICO COM ENCARGOS COMPLEMENTARES | D13: H | E13: 4 | F13: 19.26 | G13: 77.04
B14: 88248 | C14: AUXILIAR DE ENCANADOR OU BOMBEIRO HIDRÁULICO COM ENCARGOS COMPLEMENTARES | D14: H | E14: 4 | F14: 15.61 | G14: 62.44
B15: 88309 | C15: PEDREIRO COM ENCARGOS COMPLEMENTARES | D15: H | E15: 2.5 | F15: 19.3 | G15: 48.25
B16: TOTAL MAO DE OBRA | G16: =SUM(G12:G15) -> 226.93
B17: MATERIAIS
B18: 3146 | C18: FITA VEDA ROSCA EM ROLOS DE 18 MM X 10 M (L X C) | D18: M | E18: 2.26 | F18: =(2.48/10) -> 0.25 | G18: =E18*F18 -> 0.57
B19: 6150 | C19: SIFAO EM METAL CROMADO PARA PIA AMERICANA, 1.1/2 X 2 " | D19: UN | E19: 2 | F19: 129.11 | G19: 258.22
B20: 34443 | C20: ACO CA-50, 16 MM, DOBRADO E CORTADO | D20: KG | E20: 1.14 | F20: 4.02 | G20: 4.58
B21: 4720 | C21: PEDRA BRITADA N. 0, OU PEDRISCO (4,8 A 9,5 MM) POSTO PEDREIRA/FORNECEDOR, SEM FRETE | D21: M3 | E21: 0.04 | F21: 68.55 | G21: 2.74
B22: 36791 | C22: TORNEIRA CROMADA DE MESA PARA LAVATORIO, BICA ALTA (REF 1195) | D22: UN | E22: 2 | F22: 77.76 | G22: 155.52
B23: 1750 | C23: BANCA/PIA DE ACO INOXIDAVEL (AISI 430) COM 2 CUBAS, COM VALVULAS, ESCORREDOR DUPLO, DE *0,55 X 2,00* M | D23: UN | E23: 1 | F23: 412.6 | G23: =E23*F23 -> 412.6
B24: 367 | C24: AREIA GROSSA - POSTO JAZIDA/FORNECEDOR (RETIRADO NA JAZIDA, SEM TRANSPORTE) | D24: M3 | E24: 0.03 | F24: 60 | G24: =E24*F24 -> 1.8
B25: 1379 | C25: CIMENTO PORTLAND COMPOSTO CP II-32 | D25: KG | E25: 16.38 | F25: 0.36 | G25: 5.9
B26: TOTAL MATERIAIS | G26: =SUM(G18:G25) -> 841.93
B27: TOTAL GERAL | G27: =G16+G26 -> 1068.86
B31: Composição | C31: PIA DE AÇO INOX (1.20x0.55)m C/ 1 CUBA E ACESSÓRIOS
B32: Preço Adotado: 513,66 | F32: Unid: UN
B33: Código | C33: Descrição | D33: Unidade | E33: Coeficiente | F33: Preço | G33: Total
B34: MAO DE OBRA
B35: 88316 | C35: SERVENTE COM ENCARGOS COMPLEMENTARES | D35: H | E35: 2 | F35: 15.68 | G35: =E35*F35 -> 31.36
B36: 88267 | C36: ENCANADOR OU BOMBEIRO HIDRÁULICO COM ENCARGOS COMPLEMENTARES | D36: H | E36: 2 | F36: 19.26 | G36: 38.52
B37: 88248 | C37: AUXILIAR DE ENCANADOR OU BOMBEIRO HIDRÁULICO COM ENCARGOS COMPLEMENTARES | D37: H | E37: 2 | F37: 15.61 | G37: 31.22
B38: 88309 | C38: PEDREIRO COM ENCARGOS COMPLEMENTARES | D38: H | E38: 2 | F38: 19.3 | G38: 38.6
B39: TOTAL MAO DE OBRA | G39: =SUM(G35:G38) -> 139.7
B40: MATERIAIS
B41: 6150 | C41: SIFAO EM METAL CROMADO PARA PIA AMERICANA, 1.1/2 X 2 " | D41: UN | E41: 1 | F41: 129.11 | G41: =E41*F41 -> 129.11
B42: 34457 | C42: ACO CA 60, 6,0 MM, DOBRADO E CORTADO | D42: KG | E42: 0.6 | F42: 4.21 | G42: 2.53
B43: 4720 | C43: PEDRA BRITADA N. 0, OU PEDRISCO (4,8 A 9,5 MM) POSTO PEDREIRA/FORNECEDOR, SEM FRETE | D43: M3 | E43: 0.03 | F43: 68.55 | G43: 2.06
B44: 36791 | C44: TORNEIRA CROMADA DE MESA PARA LAVATORIO, BICA ALTA (REF 1195) | D44: UN | E44: 1 | F44: 77.76 | G44: 77.76
B45: 1746 | C45: BANCA/PIA DE ACO INOXIDAVEL (AISI 430) COM 1 CUBA CENTRAL, COM VALVULA, ESCORREDOR DUPLO, DE *0,55 X 1,20* M | D45: UN | E45: 1 | F45: 151.9 | G45: 151.9
B46: 3143 | C46: FITA VEDA ROSCA EM ROLOS DE 18 MM X 25 M (L X C) | D46: UN | E46: 1.1 | F46: 5.64 | G46: 6.2
B47: 367 | C47: AREIA GROSSA - POSTO JAZIDA/FORNECEDOR (RETIRADO NA JAZIDA, SEM TRANSPORTE) | D47: M3 | E47: 0.02 | F47: 60 | G47: 1.2
B48: 1379 | C48: CIMENTO PORTLAND COMPOSTO CP II-32 | D48: KG | E48: 9.83 | F48: 0.36 | G48: 3.54
B49: TOTAL MATERIAIS | G49: =SUM(G41:G48) -> 374.3
B50: TOTAL GERAL | G50: =G39+G49 -> 514

Sheet CPU
A1: REVITALIZAÇÃO DO PROJETO GARÇA | G1: DATA:AGOSTO/2017
A2: SERVIÇO :Mobilização | G2: UNIDADE: | H2: unidade
A3: EQUIPAMENTO
A4: DISCRIMINAÇÃO | B4: UNIDADE | C4: QUANT. | D4: PROD | E4: IMPROD | F4: P.UNIT. PROD | G4: P.UNIT. IMPR | H4: P.TOTAL
A5: CAMINHAO FORD F-4000 OU EQUIV C/ CARROCERIA MADEIRA FIXA - CAP CARGA ATE 5,0T | B5: h | C5: 20 | D5: 1 | F5: =VLOOKUP($J$5,'SINAPI ONERADA'!$A:$D,4,0) -> 74,86 | H5: =C5*D5*F5+C5*E5*G5 -> 1497.2 | J5: 53797
A6: SUB-TOTAL | H6: =SUM(H5:H5) -> 1497.2
A7: MÃO DE OBRA
A8: DISCRIMINAÇÃO | B8: UNIDADE | C8: QUANT. | G8: P.UNIT. | H8: P.TOTAL
A9: Servente | B9: h | C9: 24 | G9: =VLOOKUP(J9,'SINAPI ONERADA'!A:D,4,0) -> 10,72 | H9: =ROUND((C9*G9),2) -> 257.28 | J9: 6111
A11: SUB-TOTAL | H11: =H9+H10 -> 257.28
C12: CUSTO | H12: =H11+H6 -> 1754.48
A13: PRODUÇÃO DA EQUIPE | B13: 1 | E13: CUSTO UNITÁRIO DO SERVIÇO | H13: =H12/B13 -> 1754.48
A14: BDI | C14: =BDI!$E$29 -> 0.1981 | H14: =ROUND((H13*C14),2) -> 347.56
A15: TOTAL DO SERVIÇO - R$ | H15: =ROUND((H13+H14),2) -> 2102.04
A17: CODEVASF | C17: COMPOSIÇÃO DE PREÇO UNITÁRIO
A18: =A1 -> REVITALIZAÇÃO DO PROJETO GARÇA | G18: =G1 -> DATA:AGOSTO/2017
A19: SERVIÇO :Desmobilização | G19: UNIDADE: | H19: unidade
A20: EQUIPAMENTO
A21: DISCRIMINAÇÃO | B21: UNIDADE | C21: QUANT. | D21: PROD | E21: IMPROD | F21: P.UNIT. PROD | G21: P.UNIT. IMPR | H21: P.TOTAL
A22: CAMINHAO FORD F-4000 OU EQUIV C/ CARROCERIA MADEIRA FIXA - CAP CARGA ATE 5,0T | B22: h | C22: =C5 -> 20 | D22: 1 | F22: =VLOOKUP($J$5,'SINAPI ONERADA'!$A:$D,4,0) -> 74,86 | H22: =C22*D22*F22+C22*E22*G22 -> 1497.2 | J22: 53797
A23: SUB-TOTAL | H23: =SUM(H22:H22) -> 1497.2
A24: MATERIAL
A25: DISCRIMINAÇÃO | B25: UNIDADE | C25: QUANT. | G25: P.UNIT. | H25: P.TOTAL
A27: SUB-TOTAL | H27: =SUM(H26:H26) -> 0
A28: SERVIÇOS - COMPOSIÇÕES AUXILIARES
A29: DISCRIMINAÇÃO | B29: UNIDADE | C29: QUANT. | G29: P.UNIT. | H29: P.TOTAL
A31: SUB-TOTAL | H31: =SUM(H30:H30) -> 0
A32: MÃO DE OBRA
A33: DISCRIMINAÇÃO | B33: UNIDADE | C33: QUANT. | G33: P.UNIT. | H33: P.TOTAL
A34: Servente | B34: h | C34: 24 | G34: =VLOOKUP(J34,'SINAPI ONERADA'!A:D,4,0) -> 10,72 | H34: =ROUND((C34*G34),2) -> 257.28 | J34: 6111
A36: SUB-TOTAL | H36: =H34+H35 -> 257.28
C37: CUSTO | H37: =H36+H31+H27+H23 -> 1754.48
A38: PRODUÇÃO DA EQUIPE | B38: 1 | E38: CUSTO UNITÁRIO DO SERVIÇO | H38: =H37/B38 -> 1754.48
A39: BDI | C39: =BDI!$E$29 -> 0.1981 | H39: =ROUND((H38*C39),2) -> 347.56
A40: TOTAL DO SERVIÇO - R$ | H40: =ROUND((H38+H39),2) -> 2102.04
A42: CODEVASF | C42: COMPOSIÇÃO AUXILIAR
A43: =A1 -> REVITALIZAÇÃO DO PROJETO GARÇA | G43: =G18 -> DATA:AGOSTO/2017
A44: SERVIÇO :Administração local | G44: UNIDADE: | H44: mês
A45: SERVIÇOS
A46: DISCRIMINAÇÃO | B46: UNIDADE | C46: QUANT. | G46: P.UNIT. | H46: P.TOTAL
A47: Kit 1º socorros | B47: MÊS | C47: 1 | G47: 30 | H47: =C47*G47 -> 30 | J47: 12893
A48: Material de limpeza | B48: MÊS | C48: 1 | G48: 20 | H48: =C48*G48 -> 20 | J48: 12895
A49: EPIS | B49: MÊS | C49: 1 | G49: 50 | H49: 50
A50: CONSUMO DE ENERGIA DO CANTEIRO | B50: mês | C50: 1 | G50: 120 | H50: 120
A51: LOCAÇÃO DE IMÓVEL PARA INSTALAÇÃO DO CANTEIRO | B51: mês | C51: 1 | G51: 350 | H51: 350
A52: TELEFONE/internet | B52: mês | C52: 1 | G52: 80 | H52: 80
A53: Alimentação | B53: mês | C53: 1 | G53: =(15*20*2*1.5) -> 900 | H53: 900
A54: SUB-TOTAL | H54: =ROUND(SUM(H47:H53),2) -> 1550
A55: CUSTO (SERVIÇOS) | H55: =H54 -> 1550
A56: MÃO DE OBRA
A57: DISCRIMINAÇÃO | B57: UNIDADE | C57: QUANT. | G57: P.UNIT. | H57: P.TOTAL
A58: ENGENHEIRO DE OBRA | B58: mês | C58: 0.08 | G58: =VLOOKUP(J58,'SINAPI ONERADA'!A:D,4,0) -> 13.719,58 | H58: =C58*G58 -> 1097.57 | J58: 40811
A59: ENCARREGADO DE OBRA | B59: mês | C59: 0.55 | G59: =VLOOKUP(J59,'SINAPI ONERADA'!A:D,4,0) -> 5.563,63 | H59: =G59*C59 -> 3060 | J59: 40818
G60: subtotal | H60: =SUM(H58:H59) -> 4157.57
A63: PRODUÇÃO DA EQUIPE | B63: 1 | E63: CUSTO UNITÁRIO DO SERVIÇO | H63: =H55/B63+H60+H61 -> 5707.57
A64: BDI | C64: =BDI!$E$29 -> 0.1981 | H64: =ROUND((H63*C64),2) -> 1130.67
A65: TOTAL mensal - R$ | H65: =ROUND((H63+H64),2) -> 6838.24
A66: TOTAL DO SERVIÇO - R$ (para 6 meses) | H66: =H65*6 -> 41029.44
A67: CODEVASF | C67: COMPOSIÇÃO AUXILIAR
A68: =A1 -> REVITALIZAÇÃO DO PROJETO GARÇA | G68: =G1 -> DATA:AGOSTO/2017
A69: SERVIÇO: Assentamento de tubulação em aço carbono | G69: UNIDADE: | H69: m
A70: SERVIÇOS
A71: DISCRIMINAÇÃO | B71: UNIDADE | C71: QUANT. | G71: P.UNIT. | H71: P.TOTAL
A77: SUB-TOTAL | H77: =ROUND(SUM(H72:H76),2) -> 0
A78: CUSTO (SERVIÇOS) | H78: =H77 -> 0
A79: MÃO DE OBRA
A80: DISCRIMINAÇÃO | B80: UNIDADE | C80: QUANT. | G80: P.UNIT. | H80: P.TOTAL
A81: GUINDAUTO HIDRÁULICO, CAPACIDADE MÁXIMA DE CARGA 6200 KG, MOMENTO MÁXIMO DE CARGA 11,7 TM, ALCANCE MÁXIMO HORIZONTAL 9,70 M, INCLUSIVE CAMINHÃO TOCO PBT 16.000 KG, POTÊNCIA DE 189 CV - CHP DIURNO. AF_06/2014 | B81: H | C81: 0.078 | G81: =VLOOKUP(J81,'SINAPI ONERADA'!A:D,4,0) -> 131,13 | H81: =C81*G81 -> 10.23 | J81: 5928
A82: ASSENTADOR DE TUBOS | B82: H | C82: 0.24 | G82: =VLOOKUP(J82,'SINAPI ONERADA'!A:D,4,0) -> 20,92 | H82: =C82*G82 -> 5.02 | J82: 88246
A83: SERVENTE | B83: H | C83: 0.42 | G83: =VLOOKUP(J83,'SINAPI ONERADA'!A:D,4,0) -> 10,72 | H83: =G83*C83 -> 4.5 | J83: 6111
G84: subtotal | H84: =SUM(H81:H83) -> 19.75
A87: PRODUÇÃO DA EQUIPE | B87: 1 | E87: CUSTO UNITÁRIO DO SERVIÇO | H87: =H78/B87+H84+H85 -> 19.75
A88: BDI | C88: =BDI!$E$29 -> 0.1981 | H88: =ROUND((H87*C88),2) -> 3.91
A89: TOTAL DO SERVIÇO - R$ | H89: =ROUND((H87+H88),2) -> 23.66
A90: CODEVASF | C90: COMPOSIÇÃO AUXILIAR
A91: =A1 -> REVITALIZAÇÃO DO PROJETO GARÇA | G91: =G68 -> DATA:AGOSTO/2017
A92: SERVIÇO: Assentamento de tubulação em PVC Defofo | G92: UNIDADE: | H92: m
A93: SERVIÇOS
A94: DISCRIMINAÇÃO | B94: UNIDADE | C94: QUANT. | G94: P.UNIT. | H94: P.TOTAL
A100: SUB-TOTAL | H100: =ROUND(SUM(H95:H99),2) -> 0
A101: CUSTO (SERVIÇOS) | H101: =H100 -> 0
A102: MÃO DE OBRA
A103: DISCRIMINAÇÃO | B103: UNIDADE | C103: QUANT. | G103: P.UNIT. | H103: P.TOTAL
A104: GUINDAUTO HIDRÁULICO, CAPACIDADE MÁXIMA DE CARGA 6200 KG, MOMENTO MÁXIMO DE CARGA 11,7 TM, ALCANCE MÁXIMO HORIZONTAL 9,70 M, INCLUSIVE CAMINHÃO TOCO PBT 16.000 KG, POTÊNCIA DE 189 CV - CHP DIURNO. AF_06/2014 | B104: H | C104: 0.011 | G104: =VLOOKUP(J104,'SINAPI ONERADA'!A:D,4,0) -> 131,13 | H104: =C104*G104 -> 1.44 | J104: 5928
A105: ASSENTADOR DE TUBOS | B105: H | C105: 0.12 | G105: =VLOOKUP(J105,'SINAPI ONERADA'!A:D,4,0) -> 20,92 | H105: =C105*G105 -> 2.51 | J105: 88246
A106: SERVENTE | B106: H | C106: 0.24 | G106: =VLOOKUP(J106,'SINAPI ONERADA'!A:D,4,0) -> 10,72 | H106: =G106*C106 -> 2.57 | J106: 6111
G107: subtotal | H107: =SUM(H104:H106) -> 6.52
A110: PRODUÇÃO DA EQUIPE | B110: 1 | E110: CUSTO UNITÁRIO DO SERVIÇO | H110: =H101/B110+H107+H108 -> 6.52
A111: BDI | C111: =BDI!$E$29 -> 0.1981 | H111: =ROUND((H110*C111),2) -> 1.29
A112: TOTAL DO SERVIÇO - R$ | H112: =ROUND((H110+H111),2) -> 7.81

Sheet Mem calc
B11: PREFEITURA MUNICIPAL DE SANTA MARIA DA BOA VISTA
B12: Secretaria de Infraestrutura
B14: OBRA: Recuperação da adutora do Garça
B15: LOCAL: Ilha do Saco (Barra), Zona Rural do Município - Santa Maria da Boa Vista/PE
B17: MEMÓRIA DE CÁLCULO
B19: Item | C19: Serviços | D19: Quantitativos | J19: Observações
B20: 1 | C20: Serviços Preliminares | D20: Un | E20: comprim. | F20: Largura | G20: Espessura | H20: Qtde | I20: Total | J20: Local
B21: 1.1 | C21: PLACA DE OBRA EM CHAPA DE ACO GALVANIZADO | D21: m² | E21: 3 | F21: 2.5 | H21: 1 | I21: =E21*F21 -> 7.5
B22: 1.3 | C22: CAPINA E LIMPEZA MANUAL DE TERRENO | D22: m² | E22: 253 | F22: 12 | H22: 1 | I22: =E22*F22 -> 3036 | J22: Limpeza de todo entorno da galeria de capitação até a casa de subestação da Celpe.
B23: 1.4 | C23: CERCA COM MOUROES DE CONCRETO, RETO, 15X15CM, ESPACAMENTO DE 3M, CRAVA DOS 0,5M, ESCORAS DE 10X10CM NOS CANTOS, COM 12 FIOS DE ARAME DE ACO OVALADO 15X17 | D23: m | E23: =90+120+40+50 -> 300 | H23: 1 | I23: =E23 -> 300 | J23: Cerca no entorno da galeria de capitação e na casa de subestação.
B24: 1.5 | C24: REATERRO MECANIZADO DE VALA COM ESCAVADEIRA HIDRÁULICA (CAPACIDADE DA CAÇAMBA: 0,8 M³ / POTÊNCIA: 111 HP), LARGURA DE 1,5 A 2,5 M, PROFUNDIDADE DE 1,5 A 3,0 M, COM SOLO (SEM SUBSTITUIÇÃO) DE 1ª CATEGORIA EM LOCAIS COM ALTO NÍVEL DE INTERFERÊNCIA. AF_04/2016 | D24: m³ | E24: 5 | F24: 2 | G24: 3 | H24: 1 | I24: =E24*F24*G24 -> 30 | J24: Reaterro no contorno da estrutura da galeria, pois devido a erosão temos que fazer complementação.
B25: 1.6 | C25: ESCAVAÇÃO MECANIZADA DE V HIDRÁULICA (0,8 M3/111 HP), LARG. DE 1,5 M A 2,5 M, EM SOLO DE 1A CATALA COM PROF. MAIOR QUE 1,5 M ATÉ 3,0 M (MÉDIA ENTRE MONTANTE E JUSANTE/UMA COMPOSIÇÃO POR TRECHO), COM ESCAVADEIRA EGORIA, EM LOCAIS COM ALTO NÍVEL DE INTERFERÊNCIA. AF_01/2015 | D25: m³ | E25: 50 | F25: 2 | G25: 2 | H25: 1 | I25: =E25*F25*G25 -> 200 | J25: Escavação para recolocação de tubulação de DN 1000 mm.
B26: 2 | C26: ESTRUTURA | D26: Un | E26: comprim. | F26: Largura | G26: Espessura | H26: Qtde | I26: Total | J26: Local
C27: ESTRUTURA
B28: 2.1 | C28: FABRICAÇÃO DE FÔRMA PARA PILARES E ESTRUTURAS SIMILARES, EM CHAPA DE MADEIRA COMPENSADA PLASTIFICADA, E = 18 MM. AF_12/2015 | D28: m² | E28: 2.2 | F28: =((0.15*2+0.1*2)) -> 0.5 | H28: 2 | I28: =E28*F28*H28 -> 2.2 | J28: Formas pora portico de sustentação das portas de entrada.
B29: 2.2 | C29: ARMACAO ACO CA-50 P/1,0M3 DE CONCRETO | D29: um | E29: =I30 -> 0.066 | H29: 1 | I29: =E29 -> 0.066 | J29: Armação para pilares de sustentação.
B30: 2.3 | C30: CONCRETAGEM DE PILARES, FCK = 25 MPA, COM USO DE BALDES EM EDIFICAÇÃO COM SEÇÃO MÉDIA DE PILARES MENOR OU IGUAL A 0,25 M² - LANÇAMENTO, ADENSAMENTO E ACABAMENTO. AF_12/2015 | D30: m³ | E30: 2.2 | F30: 0.15 | G30: 0.1 | H30: 2 | I30: =H30*G30*F30*E30 -> 0.066 | J30: Concreto para pilares de sustentação dos portões.
B31: 2.4 | C31: MONTAGEM E DESMONTAGEM DE FÔRMA DE PILARES RETANGULARES E ESTRUTURAS SIMILARES COM ÁREA MÉDIA DAS SEÇÕES MENOR OU IGUAL A 0,25 M², PÉ-DIREITO SIMPLES, EM MADEIRA SERRADA, 4 UTILIZAÇÕES. AF_12/2015 | D31: m² | E31: 2.2 | F31: 0.5 | H31: 2 | I31: =E31*F31*H31 -> 2.2 | J31: Formas pora portico de sustentação das portas de entrada.
B32: 2.5 | C32: FABRICAÇÃO DE FÔRMA PARA VIGAS, EM CHAPA DE MADEIRA COMPENSADA RESINADA, E = 17 MM. AF_12/2015 | D32: m² | E32: 3.8 | F32: =(0.15*2+0.2*2) -> 0.7 | H32: 1 | I32: =H32*F32*E32 -> 2.66 | J32: Formas pora portico de sustentação das portas de entrada.
B33: 2.6 | C33: ARMACAO ACO CA-50 P/1,0M3 DE CONCRETO | D33: um | E33: =I34 -> 0.11 | I33: =E33 -> 0.11 | J33: Armação para vigas de sustentação.
B34: 2.7 | C34: CONCRETAGEM DE VIGAS E LAJES, FCK=20 MPA, PARA LAJES MACIÇAS OU NERVURADAS COM USO DE BOMBA EM EDIFICAÇÃO COM ÁREA MÉDIA DE LAJES MENOR OU IGUAL A 20 M² - LANÇAMENTO, ADENSAMENTO E ACABAMENTO. AF_12/2015 | D34: m³ | E34: 3.8 | F34: 0.2 | G34: 0.15 | H34: 1 | I34: =PRODUCT(E34:H34) -> 0.114 | J34: Concreto para pilares de sustentação dos portões.
B35: 2.8 | C35: MONTAGEM E DESMONTAGEM DE FÔRMA DE VIGA, ESCORAMENTO COM PONTALETE DE MADEIRA, PÉ-DIREITO SIMPLES, EM MADEIRA SERRADA, 4 UTILIZAÇÕES. AF_12/2015 | E35: =E32 -> 3.8 | F35: =F32 -> 0.7 | H35: 1 | I35: =H35*F35*E35 -> 2.66 | J35: Formas pora portico de sustentação das portas de entrada.
B36: 2.9 | C36: REPARO ESTRUTURAL DE ESTRUTURAS DE CONCRETO COM ARGAMASSA POLIMERICA DE ALTO DESEMPENHO, E=2 CM | E36: 4.17 | F36: =0.2+0.2 -> 0.4 | H36: 6 | I36: =H36*F36*E36 -> 10.01 | J36: Reparo nas estruturas danificadas devido inteperismos e sucatiação.
B37: 3 | C37: REVESTIMENTOS - PISOS, PAREDES E TETOS | D37: Un | E37: Área | H37: Qtde | I37: Total | J37: Local
C38: PISO
B39: 3.1 | C39: CONTRAPISO EM ARGAMASSA TRAÇO 1:4 (CIMENTO E AREIA), PREPARO MANUAL, APLICADO EM ÁREAS SECAS SOBRE LAJE, ADERIDO, ESPESSURA 3CM. AF_06/2014 | D39: m² | E39: =(23.7*19.05)+44.89+30 -> 526.38 | H39: 1 | I39: =H39*E39 -> 526.4 | J39: Contrapiso para laje da galeria e casa da subestação.
C40: PAREDE
B41: 3.2 | C41: CHAPISCO APLICADO EM ALVENARIA (COM PRESENÇA DE VÃOS) E ESTRUTURAS DE CONCRETO DE FACHADA, COM COLHER DE PEDREIRO. ARGAMASSA TRAÇO 1:3 COM PREPARO EM BETONEIRA 400L. AF_06/2014 | D41: m² | E41: =102.5+110.4+268.32 -> 481.22 | H41: 1 | I41: =H41*E41 -> 481.22 | J41: Paredes internas e externas da galeria e da casa de subestação.
B42: 3.3 | C42: BARRA LISA COM ARGAMASSA TRACO 1:4 (CIMENTO E AREIA GROSSA), ESPESSURA 2,0CM, INCLUSO ADITIVO IMPERMEABILIZANTE, PREPARO MECANICO DA ARGAMASSA | D42: m² | E42: =E41 -> 481.22 | H42: 1 | I42: =I41 -> 481.22 | J42: Paredes internas e externas da galeria e da casa de subestação.
B43: 3.4 | C43: APLICAÇÃO DE FUNDO SELADOR ACRÍLICO EM PAREDES, UMA DEMÃO. AF_06/2014 | D43: m² | E43: =E42 -> 481.22 | H43: 1 | I43: =I42 -> 481.22 | J43: Paredes internas e externas da galeria e da casa de subestação.
B44: 3.5 | C44: APLICAÇÃO MANUAL DE PINTURA COM TINTA LÁTEX ACRÍLICA EM PAREDES, DUAS DEMÃOS. AF_06/2014 | D44: m² | E44: =E43 -> 481.22 | H44: 1 | I44: =I43 -> 481.22 | J44: Paredes internas e externas da galeria e da casa de subestação.
B45: 3.6 | C45: APLICAÇÃO E LIXAMENTO DE MASSA LÁTEX EM PAREDES, UMA DEMÃO. AF_06/2014 | D45: m² | E45: =E44 -> 481.22 | H45: 1 | I45: =I44 -> 481.22 | J45: Paredes internas e externas da galeria e da casa de subestação.
B46: 3.7 | C46: COBOGO DE CONCRETO (ELEMENTO VAZADO), 7X50X50CM, ASSENTADO COM ARGAMASSA TRACO 1:4 (CIMENTO E AREIA) | D46: m² | E46: =21.91+10 -> 31.91 | H46: 1 | I46: =E46*H46 -> 31.91 | J46: Para ventilação das chaves de partida soft starter e quadro da subestação.
B47: 4 | C47: ESQUARIAS | D47: Un | E47: Área | F47: comprim. | H47: Qtde | I47: Total
C48: FERRO
B49: 4.1 | C49: FUNDO ANTICORROSIVO A BASE DE OXIDO DE FERRO (ZARCAO), UMA DEMAO | D49: m² | E49: =E51*2 -> 22 | H49: 1 | I49: =H49*E49 -> 22
B50: 4.2 | C50: PINTURA ESMALTE ALTO BRILHO, DUAS DEMAOS, SOBRE SUPERFICIE METALICA | D50: m² | E50: =E51*2 -> 22 | H50: 1 | I50: =H50*E50 -> 22
B51: 4.3 | C51: PORTAO DE FERRO EM CHAPA GALVANIZADA PLANA 14 GSG | D51: m² | E51: =(3*2.2)+(2*2.2) -> 11 | H51: 1 | I51: 11 | J51: Portão para casa dos quadros soft starter e casa da subestação.
B52: 4.4 | C52: CORRIMAO EM TUBO ACO GALVANIZADO 2 1/2" COM BRACADEIRA INCLUINDO FUNDO PREPARADOR ANTICORROSIVO E PINTURA ESMALTE SINTETICO | D52: m | E52: =16.9*2+5.1*2+19.5*2+7 -> 90 | H52: 1 | I52: 90 | J52: Para parte de acesso superior a galeria de capitação.
B53: 4.5 | C53: ESCADA TIPO MARINHEIRO EM ACO CA-50 9,52MM INCLUSO PINTURA COM FUNDO ANTICORROSIVO TIPO ZARCAO | D53: m | F53: =6.5*2 -> 13 | H53: 1 | I53: 0 | J53: Para acesso aos flutuantes que apoiam os conjuntos de bombas.
C54: COBERTA
B55: 4.6 | C55: TRAMA DE AÇO COMPOSTA POR TERÇAS PARA TELHADOS DE ATÉ 2 ÁGUAS PARA TELHA ONDULADA DE FIBROCIMENTO, METÁLICA, PLÁSTICA OU TERMOACÚSTICA, INCLUSO TRANSPORTE VERTICAL. AF_12/2015 | D55: m² | E55: =(2.9*14.4*2)+60.64 -> 144.16 | H55: 1 | I55: =H55*E55 -> 144.16 | J55: Coberta da galeria e subestação.
B56: 4.7 | C56: TELHAMENTO COM TELHA DE AÇO/ALUMÍNIO E = 0,5 MM, COM ATÉ 2 ÁGUAS, INCLUSO IÇAMENTO. AF_06/2016 | D56: m² | E56: =E55 -> 144.16 | H56: 1 | I56: =H56*E56 -> 144.16 | J56: Coberta da galeria e subestação.
B57: 4.8 | C57: CUMEEIRA EM PERFIL ONDULADO DE ALUMÍNIO | D57: m | F57: 14.4 | H57: 1 | I57: =H57*F57 -> 14.4 | J57: Coberta da galeria e subestação.
B58: 4.9 | C58: CALHA EM CHAPA DE AÇO GALVANIZADO NÚMERO 24, DESENVOLVIMENTO DE 50 CM, INCLUSO TRANSPORTE VERTICAL. AF_06/2016 | D58: m | F58: =18.7*2 -> 37.4 | H58: 1 | I58: =H58*F58 -> 37.4 | J58: Coberta da galeria e subestação.
B59: 5 | C59: INSTALAÇÕES ELETRICAS | D59: Un | E59: Qtde | I59: Total | J59: Local
C60: PADRÃO DE ENTRADA TRIFÁSICO 125A AÉREO
B61: 5.1 | C61: QUADRO DE DISTRIBUICAO DE ENERGIA DE EMBUTIR, EM CHAPA METALICA, PARA 18 DISJUNTORES TERMOMAGNETICOS MONOPOLARES, COM BARRAMENTO TRIFASICO E NEUTRO, FORNECIMENTO E INSTALACAO | D61: um | E61: 1 | I61: =E61 -> 1 | J61: Casa dos soft starter.
B62: 5.2 | C62: DISJUNTOR MONOPOLAR TIPO DIN, CORRENTE NOMINAL DE 16A - FORNECIMENTO E INSTALAÇÃO. AF_04/2016 | D62: um | E62: 9 | I62: =E62 -> 9 | J62: Casa dos soft starter.
B63: 5.3 | C63: DISJUNTOR TRIPOLAR TIPO DIN, CORRENTE NOMINAL DE 40A - FORNECIMENTO E INSTALAÇÃO. AF_04/2016 | D63: um | E63: 1 | I63: 1 | J63: Casa dos soft starter.
B64: 5.4 | C64: QUADRO DE DISTRIBUICAO DE ENERGIA DE EMBUTIR, EM CHAPA METALICA, PARA 3 DISJUNTORES TERMOMAGNETICOS MONOPOLARES SEM BARRAMENTO FORNECIMENTO E INSTALACAO | D64: um | E64: 1 | I64: 1 | J64: Casa da subestação.
B65: 5.5 | C65: DISJUNTOR TRIPOLAR TIPO DIN, CORRENTE NOMINAL DE 25A - FORNECIMENTO E INSTALAÇÃO. AF_04/2016 | D65: um | E65: 1 | I65: 1 | J65: Casa dos soft starter.
C66: PONTOS ELÉTRICOS
B67: 5.6 | C67: REFLETOR REDONDO EM ALUMINIO COM SUPORTE E ALCA REGULAVEL PARA FIXACAO, COM LAMPADA VAPOR DE MERCURIO 250W | D67: um | E67: 6 | I67: 6 | J67: Casa dos soft starter e subestação.
B68: 5.7 | C68: PONTO DE ILUMINAÇÃO RESIDENCIAL INCLUINDO INTERRUPTOR SIMPLES, CAIXA E LÉTRICA, ELETRODUTO, CABO, RASGO, QUEBRA E CHUMBAMENTO (EXCLUINDO LUMINÁRIA E LÂMPADA). AF_01/2016 | D68: um | E68: 6 | I68: 6 | J68: Casa dos soft starter e subestação.
B69: 5.8 | C69: PONTO DE ILUMINAÇÃO RESIDENCIAL INCLUINDO INTERRUPTOR PARALELO (2 MÓDULOS), CAIXA ELÉTRICA, ELETRODUTO, CABO, RASGO, QUEBRA E CHUMBAMENTO (EXCLUINDO LUMINÁRIA E LÂMPADA). AF_01/2016 | D69: um | E69: 4 | I69: 4 | J69: Casa dos soft starter.
B70: 5.9 | C70: LUMINARIA TIPO CALHA, DE SOBREPOR, COM REATOR DE PARTIDA RAPIDA E LAMPADA FLUORESCENTE 1X20W, COMPLETA, FORNECIMENTO E INSTALACAO | D70: um | E70: 4 | I70: 4 | J70: Casa dos soft starter.
B71: 5.10 | C71: ELETRODUTO RÍGIDO ROSCÁVEL, PVC, DN 50 MM (1 1/2") - FORNECIMENTO E INSTALAÇÃO. AF_12/2015 | D71: m | E71: 80 | I71: 80 | J71: Levar cabeamento para ligações de quadro disjuntores.
B72: 5.11 | C72: ESCAVACAO MANUAL EM TERRA ATE 1,50 M DE PROFUNDIDADE, SEM ESCORAMENTO. | D72: m³ | E72: =80*0.5*0.3 -> 12 | I72: 12 | J72: Levar cabeamento para ligações de quadro disjuntores.
B73: 5.12 | C73: CAIXA DE PASSAGEM 20X20X25 FUNDO BRITA COM TAMPA | D73: um | E73: 8 | I73: 8 | J73: Levar cabeamento para ligações de quadro disjuntores.
B74: 5.13 | C74: CABO DE COBRE FLEXÍVEL ISOLADO, 10 MM², ANTI-CHAMA 0,6/1,0 KV, PARA DISTRIBUIÇÃO - FORNECIMENTO E INSTALAÇÃO. AF_12/2015 | D74: m | E74: 400 | I74: 400 | J74: Levar cabeamento para ligações de quadro disjuntores.
B75: 5.14 | C75: TOMADA BAIXA DE EMBUTIR (2 MÓDULOS), 2P+T 10 A, INCLUINDO SUPORTE E PLACA - FORNECIMENTO E INSTALAÇÃO. AF_12/2015 | D75: um | E75: 8 | I75: 8 | J75: TGU´s para casa de subestação e casa de soft starter.
B76: 5.15 | C76: PONTO DE TOMADA RESIDENCIAL INCLUINDO TOMADA 20A/250V, CAIXA ELÉTRICA, ELETRODUTO, CABO, RASGO, QUEBRA E CHUMBAMENTO. AF_01/2016 | D76: um | E76: 8 | I76: 8 | J76: TGU´s para casa de subestação e casa de soft starter.
B77: 6 | C77: CONJUNTO MOTOR BOMBA + FLUTUANTE + QUADRO DE COMANDO + SUBESTAÇÃO | D77: Un | E77: Qtde | I77: Total | J77: Local
B78: 6.1 | C78: CONJUNTO MOTOR BOMBA, MOTOR TRIFÁSICO 125 CV, 400 M³/H, 50 MCA, 380 V, 4 POLOS, 1780 RPM, 60 HZ ALTO RENDIMENTO, IP-55, MONOBLOCO 300 MM, MODELO IRR 250-200-300 (10X8 AP-X), COM FLUTUANTE MODELO SK-1500 EM PRFV, COM CAPOTA E SAIDA FLANGEADA, CHAVE DE PARTIDA TRIFÁSICA SOFT STARTE 125 CV, 380 V / 60 HZ | D78: UN | E78: 3 | I78: =E78 -> 3 | J78: Capitação d'água para destinação até o canal.
B79: 6.2 | C79: SUBESTAÇÃO PADRÃO CELPE DE 300 Kva 220/380v APOIADA EM QUADRO DE FORÇA, COM CABEAMENTO NECESSÁRIO PARA LIGAÇÃO DESDE A RECEPÇÃO ATÉ DESTINAÇÃO DAS CARGAS SOLICITADAS PELOS MOTORES DAS BOMBAS DE CENTRIFUGAS, COM 200 M DE CABO FLEX 95 MM² (HERP), COM 255 CABO ALUMINIO XLPE 35 MM² 15 KV CINZA, 40 M DE CABO RÍGIDO 240 MM²(HERP), COM PARA RAIO POLIMERICO 12 KV 10 KA, COM ATERRAMENTO, QUADRO DE MEDIÇÃO TRIFÁSICO, TUBULAÇÃO GALVANIZADA PARA EXECUÇÃO TOTAL, DISJUNTOR DE 500 A, PARAFUSOS, ARRUELAS, CONECTORES, LUVAS, CABEAMENTO E DEMAIS ITENS NECESSÁRIOS PARA EXECUÇÃO TOTAL DO SERVIÇO | D79: UN | E79: 1 | I79: =E79 -> 1 | J79: Subestação para transformação de corrente de tensões.
B80: 6.3 | C80: TUBULAÇÃO PVC DEFOFO DN 300 MM PARA LIGAÇÃO DAS BOMBAS NA TUBULAÇÃO DE REDE | D80: M | E80: 60 | I80: 60 | J80: Utilização na ligação para os conjuntos de bombas.
B81: 6.4 | C81: TUBULAÇÃO AÇO CARBONO 1000 MM E=5/16" 6 M COM 2 FLANGES | D81: PÇ | E81: 7 | I81: 7 | J81: Recuperação de trecho danificado.
B82: 6.5 | C82: CURVA PVC DEFOFO 90 GRAUS DN 300 | D82: PÇ | E82: 6 | I82: 6 | J82: Utilização na ligação para os conjuntos de bombas.
B83: 6.6 | C83: KIT SISTEMA DE ADUÇÃO: 1 MANGOTE DN250MM X 10 M, 2 ADAPTADOR TIPO ROSCAXRANHURA DE 10", 2 FLANGE DE 10" EM FERRO FUNDIDO, 4 ABRAÇADEIRA DE 10", 1 BOIA DE SUSTENTAÇÃO PARA CONJUNTO FLEXIVEL + 3 VÁLVULAS BORBOLETA DE 400 MM COM JUNTA DRESS + 3 VÁLVULAS DE PÉ DE 300 MM COM JUNTAS DRESS+ 3 VÁLVULAS DE RETENÇÃO DE 300 MM COM JUNTAS DRESS | D83: CJ | E83: 3 | I83: 3 | J83: Utilização na ligação para os conjuntos de bombas.
B84: 6.7 | C84: REDUÇÃO EM AÇO CARBONO DE 600/300MM 2 FLANGES E=5/16" | D84: PÇ | E84: 3 | I84: =E84 -> 3 | J84: Utilização na ligação para os conjuntos de bombas.

Sheet CRONOGRAMA
B11: PREFEITURA MUNICIPAL DE SANTA MARIA DA BOA VISTA
B12: Secretaria de Infraestrutura
B14: OBRA: Recuperação da adutora do Garça
B15: LOCAL: Ilha do Saco (Barra), Zona Rural do Município - Santa Maria da Boa Vista/PE
B17: CRONOGRAMA FÍSICO-FINANCEIRO
C19: DISCRIMINAÇÃO DOS SERVIÇOS | D19: Total | E19: MÊS 01 | F19: MÊS 02 | G19: MÊS 03 | H19: MÊS 04 | I19: MÊS 05 | J19: MÊS 06
B20: ITEM | D20: (R$) | E20: valor/ inc. | F20: valor/ inc. | G20: valor/ inc. | H20: valor/ inc. | I20: valor/ inc. | J20: valor/ inc.
B21: 1 | C21: SERVIÇOS PRELIMINARES | D21: 29182.54 | E21: =$D21*E22 -> 29182.54 | F21: 0 | G21: 0 | H21: 0 | I21: 0 | J21: 0
E22: 1 | F22: 0 | G22: 0 | H22: 0 | I22: 0 | J22: 0
B23: 2 | C23: ESTRUTURA | D23: 3760.8 | E23: =$D23*E24 -> 3760.8 | F23: 0 | G23: 0 | H23: 0 | I23: 0 | J23: 0
E24: 1 | F24: 0 | G24: 0 | H24: 0 | I24: 0 | J24: 0
B25: 3 | C25: REVESTIMENTOS - PISOS, PAREDES E TETOS | D25: 59714.2 | E25: =$D25*E26 -> 23885.68 | F25: 20899.97 | G25: 14928.55 | H25: 0 | I25: 0 | J25: 0
E26: 0.4 | F26: 0.35 | G26: 0.25 | H26: 0 | I26: 0 | J26: 0
B27: 4 | C27: ESQUARIAS | D27: 30149.68 | E27: =$D27*E28 -> 0 | F27: 15074.84 | G27: 15074.84 | H27: 0 | I27: 0 | J27: 0
E28: 0 | F28: 0.5 | G28: 0.5 | H28: 0 | I28: 0 | J28: 0
B29: 5 | C29: INSTALAÇÕES ELETRICAS | D29: 11200.78 | E29: =$D29*E30 -> 0 | F29: 4480.31 | G29: 3360.23 | H29: 3360.23 | I29: 0 | J29: 0
E30: 0 | F30: 0.4 | G30: 0.3 | H30: 0.3 | I30: 0 | J30: 0
B31: 6 | C31: CONJUNTO MOTOR BOMBA + FLUTUANTE + QUADRO DE COMANDO + SUBESTAÇÃO | D31: 736608.26 | E31: =$D31*E32 -> 0 | F31: 0 | G31: 220982.48 | H31: 220982.48 | I31: 147321.65 | J31: 147321.65
E32: 0 | F32: 0 | G32: 0.3 | H32: 0.3 | I32: 0.2 | J32: 0.2
B33: TOTAL | D33: =SUM(D21:D32) -> 870616.26 | E33: =E21+E23+E25+E27+E29+E31 -> 56829.02 | F33: 40455.12 | G33: 254346.1 | H33: 224342.71 | I33: 147321.65 | J33: 147321.65
B34: FINANCEIRO ACUMULADO | E34: =E33 -> 56829.02 | F34: =F33+E34 -> 97284.14 | G34: =G33+F34 -> 351630.24 | H34: =H33+G34 -> 575972.95 | I34: =I33+H34 -> 723294.6 | J34: =J33+I34 -> 870616.25
B35: FÍSICO ACUMULADO | E35: =E34/D33 -> 0.07 | F35: =F34/D33 -> 0.11 | G35: =G34/D33 -> 0.4 | H35: =H34/D33 -> 0.66 | I35: =I34/D33 -> 0.83 | J35: =J34/D33 -> 1

Sheet BDI
B5: DETALHAMENTO DO BDI - SERVIÇOS | G5: DETALHAMENTO DO BDI - MATERIAIS
B6: SEM DESONERAÇÃO | G6: SEM DESONERAÇÃO
B7: Item | C7: Descrição dos serviços | D7: Preço de Venda (%) | E7: Custo Direto (%) | G7: Item | H7: Descrição dos serviços | I7: Preço de Venda (%) | J7: Custo Direto (%)
B9: 1 | C9: Administração Central (A) | E9: 0.045 | G9: 1 | H9: Administração Central (A) | J9: =E9 -> 0.045
B11: 2 | C11: Impostos e Taxas (I) | D11: =SUM(D12:D15) -> 0.0665 | G11: 2 | H11: Impostos e Taxas (I) | I11: =SUM(I12:I15) -> 0.0365
B12: 2.1 | C12: ISS | D12: 0.03 | G12: 2.1 | H12: ISS
B13: 2.2 | C13: PIS | D13: 0.0065 | G13: 2.2 | H13: PIS | I13: 0.0065
B14: 2.3 | C14: Cofins | D14: 0.03 | G14: 2.3 | H14: Cofins | I14: 0.03
B15: 2.4 | C15: CPRB | D15: 0 | G15: 2.4 | H15: CPRB | I15: 0
B17: 3 | C17: Risco, seguro e garantia (R) | E17: =SUM(E18:E19) -> 0.0128 | G17: 3 | H17: Risco, seguro e garantia (R) | J17: =SUM(J18:J19) -> 0.0128
B18: 3.1 | C18: Risco | E18: 0.01 | G18: 3.1 | H18: Risco | J18: 0.01
B19: 3.2 | C19: Seguro + Garantia | E19: 0.0028 | G19: 3.2 | H19: Seguro + Garantia | J19: =E19 -> 0.0028
B21: 4 | C21: Despesas Financeiras (DF) | E21: 0.007 | G21: 4 | H21: Despesas Financeiras (DF) | J21: =E21 -> 0.007
B23: 5 | C23: Lucro (L) | E23: 0.05 | G23: 5 | H23: Lucro (L) | J23: 0.03
C25: BDI* (%) | E25: =((((1+E9+E17)*(1+E21)*(1+E23))/(1-D11)))-1 -> 0.1981 | H25: BDI* (%) | J25: =((((1+J9+J17)*(1+J21)*(1+J23))/(1-I11)))-1 -> 0.1387
C29: BDI (%) - ADOTADO | E29: =E25 -> 0.1981 | H29: BDI (%) - ADOTADO | J29: =J25 -> 0.1387
B31: AC = | C31: taxa de rateio da Administração Central | E31: =E9 -> 0.045 | G31: AC = | H31: taxa de rateio da Administração Central | J31: =J9 -> 0.045
B32: I = | C32: taxa de tributos | E32: =D11 -> 0.0665 | G32: I = | H32: taxa de tributos | J32: =I11 -> 0.0365
B33: R = | C33: taxa de risco, seguro e garantia | E33: =E17 -> 0.0128 | G33: R = | H33: taxa de risco, seguro e garantia | J33: =J17 -> 0.0128
B34: DF = | C34: taxa das despesas financeiras | E34: =E21 -> 0.007 | G34: DF = | H34: taxa das despesas financeiras | J34: =J21 -> 0.007
B35: L = | C35: taxa de lucro | E35: =E23 -> 0.05 | G35: L = | H35: taxa de lucro | J35: =J23 -> 0.03

Sheet SINAPI ONERADA
A1: PRECOS DE INSUMOS
A3: MES DE COLETA: 08/2017
A4: LOCALIDADE: 1250 - RECIFE
A5: ENCARGOS SOCIAIS (%) HORISTA 117,18 MENSALISTA 72,27
A7: CODIGO | B7: DESCRICAO DO INSUMO | C7: UNIDADE | D7: PRECO MEDIANO R$
A8: 117 | B8: !EM PROCESSO DE DESATIVACAO! ADESIVO PLASTICO PARA PVC, BISNAGA COM 17 GR | C8: UN | D8: 2,00
A9: 38954 | B9: !EM PROCESSO DE DESATIVACAO! ALICATE ALARGADOR DE TUBO PEX | C9: UN | D9: 34,33
A10: 38956 | B10: !EM PROCESSO DE DESATIVACAO! ALICATE CRIMPADOR DE TUBO PEX | C10: UN | D10: 804,59
A11: 38957 | B11: !EM PROCESSO DE DESATIVACAO! ANEIS DE CRIMPAGEM PARA ALICATE CRIMPADOR DE TUBO PEX, BITOLAS DE 16 A 32 MM | C11: PAR | D11: 63,11
A12: 4757 | B12: !EM PROCESSO DE DESATIVACAO! ASFALTADOR | C12: H | D12: 14,24
A13: 12075 | B13: !EM PROCESSO DE DESATIVACAO! CAIXA P/ MEDICAO DE DEMANDA E ENERGIA REATIVA EM CHAPA 18 ESTAMPADA , PADRAO DE CONCESSIONARIA LOCAL | C13: UN | D13: 637,14
A14: 38958 | B14: !EM PROCESSO DE DESATIVACAO! CALIBRADOR / CHANFRADOR / ESCAREADOR DE TUBO PEX | C14: UN | D14: 37,54
A15: 1520 | B15: !EM PROCESSO DE DESATIVACAO! CONCRETO BETUMINOSO USINADO A QUENTE (CBUQ) PARA PAVIMENTACAO ASFALTICA, PADRAO DNIT, FAIXA C, COM CAP 50/70 - DMT = 10 KM | C15: M3 | D15: 635,46
A16: 2404 | B16: !EM PROCESSO DE DESATIVACAO! DIVISORIA COLMEIA CEGA COM MONTANTE E RODAPE DE ALUMINIO ANODIZADO SIMPLES (SEM COLOCACAO) | C16: M2 | D16: 91,70
A17: 2720 | B17: !EM PROCESSO DE DESATIVACAO! ESCAVADEIRA DRAGA DE ARRASTE, CAP. 3/4 JC 140HP (INCL MANUTENCAO/OPERACAO) | C17: H | D17: 212,44
A18: 2719 | B18: !EM PROCESSO DE DESATIVACAO! ESCAVADEIRA HIDRAULICA SOBRE ESTEIRAS DE 99 HP, PESO OPERACIONAL DE *16* T E CAPACIDADE DE 0,85 A 1,00 M3 (LOCACAO COM OPERADOR, COMBUSTIVEL E MANUTENCAO) | C18: H | D18: 180,00
A19: 13382 | B19: !EM PROCESSO DE DESATIVACAO! LUMINARIA FECHADA P/ ILUMINACAO PUBLICA, TIPO ABL 50/F OU EQUIV, P/ LAMPADA A VAPOR DE MERCURIO 400W | C19: UN | D19: 261,13
A20: 20198 | B20: !EM PROCESSO DE DESATIVACAO! MADEIRA DE 1A. QUALIDADE (MADEIRA BRANCA), SERRADA E NAO APARELHADA, PARA FORMAS DE CONCRETO ARMADO | C20: M3 | D20: 1.100,00
A21: 38959 | B21: !EM PROCESSO DE DESATIVACAO! PRENSA DE MONTAGEM PARA TUBO PEX | C21: UN | D21: 557,60
A22: 4126 | B22: !EM PROCESSO DE DESATIVACAO! TERMINAL DE PORCELANA (MUFLA) UNIPOLAR, USO EXTERNO, TENSAO 3,6/6 KV, PARA CABO DE 10/16 MM2, COM ISOLAMENTO EPR | C22: UN | D22: 178,29
A23: 38955 | B23: !EM PROCESSO DE DESATIVACAO! TESOURA / CORTADOR DE TUBOS PEX | C23: UN | D23: 37,67
A24: 38605 | B24: ABERTURA PARA ENCAIXE DE CUBA OU LAVATORIO EM BANCADA DE MARMORE/ GRANITO OU OUTRO TIPO DE PEDRA NATURAL | C24: UN | D24: 87,07
A25: 11270 | B25: ABRACADEIRA DE LATAO PARA FIXACAO DE CABO PARA-RAIO, DIMENSOES 32 X 24 X 24 MM | C25: UN | D25: 1,11
A26: 412 | B26: ABRACADEIRA DE NYLON PARA AMARRACAO DE CABOS, COMPRIMENTO DE *230* X *7,6* MM | C26: UN | D26: 1,13
A27: 414 | B27: ABRACADEIRA DE NYLON PARA AMARRACAO DE CABOS, COMPRIMENTO DE 100 X 2,5 MM | C27: UN | D27: 0,07
A28: 410 | B28: ABRACADEIRA DE NYLON PARA AMARRACAO DE CABOS, COMPRIMENTO DE 150 X *3,6* MM | C28: UN | D28: 0,17
A29: 411 | B29: ABRACADEIRA DE NYLON PARA AMARRACAO DE CABOS, COMPRIMENTO DE 200 X *4,6* MM | C29: UN | D29: 0,22
A30: 408 | B30: ABRACADEIRA DE NYLON PARA AMARRACAO DE CABOS, COMPRIMENTO DE 390 X *4,6* MM | C30: UN | D30: 1,09
A31: 39131 | B31: ABRACADEIRA EM ACO PARA AMARRACAO DE ELETRODUTOS, TIPO D, COM 1 1/2" E CUNHA DE FIXACAO | C31: UN | D31: 2,72
A32: 394 | B32: ABRACADEIRA EM ACO PARA AMARRACAO DE ELETRODUTOS, TIPO D, COM 1 1/2" E PARAFUSO DE FIXACAO | C32: UN | D32: 2,75
A33: 39130 | B33: ABRACADEIRA EM ACO PARA AMARRACAO DE ELETRODUTOS, TIPO D, COM 1 1/4" E CUNHA DE FIXACAO | C33: UN | D33: 2,48
A34: 395 | B34: ABRACADEIRA EM ACO PARA AMARRACAO DE ELETRODUTOS, TIPO D, COM 1 1/4" E PARAFUSO DE FIXACAO | C34: UN | D34: 2,65
A35: 39127 | B35: ABRACADEIRA EM ACO PARA AMARRACAO DE ELETRODUTOS, TIPO D, COM 1/2" E CUNHA DE FIXACAO | C35: UN | D35: 1,31
A36: 392 | B36: ABRACADEIRA EM ACO PARA AMARRACAO DE ELETRODUTOS, TIPO D, COM 1/2" E PARAFUSO DE FIXACAO | C36: UN | D36: 1,34
A37: 39129 | B37: ABRACADEIRA EM ACO PARA AMARRACAO DE ELETRODUTOS, TIPO D, COM 1" E CUNHA DE FIXACAO | C37: UN | D37: 1,53
A38: 393 | B38: ABRACADEIRA EM ACO PARA AMARRACAO DE ELETRODUTOS, TIPO D, COM 1" E PARAFUSO DE FIXACAO | C38: UN | D38: 1,60
A39: 39133 | B39: ABRACADEIRA EM ACO PARA AMARRACAO DE ELETRODUTOS, TIPO D, COM 2 1/2" E CUNHA DE FIXACAO | C39: UN | D39: 3,57
A40: 397 | B40: ABRACADEIRA EM ACO PARA AMARRACAO DE ELETRODUTOS, TIPO D, COM 2 1/2" E PARAFUSO DE FIXACAO | C40: UN | D40: 3,94
A41: 39132 | B41: ABRACADEIRA EM ACO PARA AMARRACAO DE ELETRODUTOS, TIPO D, COM 2" E CUNHA DE FIXACAO | C41: UN | D41: 2,85
A42: 396 | B42: ABRACADEIRA EM ACO PARA AMARRACAO DE ELETRODUTOS, TIPO D, COM 2" E PARAFUSO DE FIXACAO | C42: UN | D42: 3,06
A43: 39135 | B43: ABRACADEIRA EM ACO PARA AMARRACAO DE ELETRODUTOS, TIPO D, COM 3 1/2" E CUNHA DE FIXACAO | C43: UN | D43: 5,71
A44: 39128 | B44: ABRACADEIRA EM ACO PARA AMARRACAO DE ELETRODUTOS, TIPO D, COM 3/4" E CUNHA DE FIXACAO | C44: UN | D44: 1,42
A45: 400 | B45: ABRACADEIRA EM ACO PARA AMARRACAO DE ELETRODUTOS, TIPO D, COM 3/4" E PARAFUSO DE FIXACAO | C45: UN | D45: 1,39
A46: 39125 | B46: ABRACADEIRA EM ACO PARA AMARRACAO DE ELETRODUTOS, TIPO D, COM 3/8" E PARAFUSO DE FIXACAO | C46: UN | D46: 1,42
A47: 39134 | B47: ABRACADEIRA EM ACO PARA AMARRACAO DE ELETRODUTOS, TIPO D, COM 3" E CUNHA DE FIXACAO | C47: UN | D47: 4,76
A48: 398 | B48: ABRACADEIRA EM ACO PARA AMARRACAO DE ELETRODUTOS, TIPO D, COM 3" E PARAFUSO DE FIXACAO | C48: UN | D48: 4,39
A49: 39126 | B49: ABRACADEIRA EM ACO PARA AMARRACAO DE ELETRODUTOS, TIPO D, COM 4" E CUNHA DE FIXACAO | C49: UN | D49: 6,43
A50: 399 | B50: ABRACADEIRA EM ACO PARA AMARRACAO DE ELETRODUTOS, TIPO D, COM 4" E PARAFUSO DE FIXACAO | C50: UN | D50: 5,66
A51: 39158 | B51: ABRACADEIRA EM ACO PARA AMARRACAO DE ELETRODUTOS, TIPO ECONOMICA (GOTA), COM 8" | C51: UN | D51: 15,21
A52: 39141 | B52: ABRACADEIRA EM ACO PARA AMARRACAO DE ELETRODUTOS, TIPO U SIMPLES, COM 1 1/2" | C52: UN | D52: 1,10
A53: 39140 | B53: ABRACADEIRA EM ACO PARA AMARRACAO DE ELETRODUTOS, TIPO U SIMPLES, COM 1 1/4" | C53: UN | D53: 1,00
A54: 39137 | B54: ABRACADEIRA EM ACO PARA AMARRACAO DE ELETRODUTOS, TIPO U SIMPLES, COM 1/2" | C54: UN | D54: 0,57
A55: 39139 | B55: ABRACADEIRA EM ACO PARA AMARRACAO DE ELETRODUTOS, TIPO U SIMPLES, COM 1" | C55: UN | D55: 0,83
A56: 39143 | B56: ABRACADEIRA EM ACO PARA AMARRACAO DE ELETRODUTOS, TIPO U SIMPLES, COM 2 1/2" | C56: UN | D56: 2,28
A57: 39142 | B57: ABRACADEIRA EM ACO PARA AMARRACAO DE ELETRODUTOS, TIPO U SIMPLES, COM 2" | C57: UN | D57: 1,63
A58: 39138 | B58: ABRACADEIRA EM ACO PARA AMARRACAO DE ELETRODUTOS, TIPO U SIMPLES, COM 3/4" | C58: UN | D58: 0,61
A59: 39136 | B59: ABRACADEIRA EM ACO PARA AMARRACAO DE ELETRODUTOS, TIPO U SIMPLES, COM 3/8" | C59: UN | D59: 0,40
A60: 39144 | B60: ABRACADEIRA EM ACO PARA AMARRACAO DE ELETRODUTOS, TIPO U SIMPLES, COM 3" | C60: UN | D60: 2,65
A61: 39145 | B61: ABRACADEIRA EM ACO PARA AMARRACAO DE ELETRODUTOS, TIPO U SIMPLES, COM 4" | C61: UN | D61: 4,37
A62: 12615 | B62: ABRACADEIRA PVC, PARA CALHA PLUVIAL, DIAMETRO ENTRE 80 E 100 MM, PARA DRENAGEM PREDIAL | C62: UN | D62: 3,40
A63: 11927 | B63: ABRACADEIRA, GALVANIZADA/ZINCADA, ROSCA SEM FIM, PARAFUSO INOX, LARGURA FITA *12,6 A *14 MM, D = 2" A 2 1/2" | C63: UN | D63: 3,33
A64: 11928 | B64: ABRACADEIRA, GALVANIZADA/ZINCADA, ROSCA SEM FIM, PARAFUSO INOX, LARGURA FITA *12,6 A *14 MM, D = 3" A 3 3/4" | C64: UN | D64: 3,81
A65: 11929 | B65: ABRACADEIRA, GALVANIZADA/ZINCADA, ROSCA SEM FIM, PARAFUSO INOX, LARGURA FITA *12,6 A *14 MM, D = 4" A 4 3/4" | C65: UN | D65: 5,90
A66: 36801 | B66: ACABAMENTO CROMADO PARA REGISTRO PEQUENO, 1/2 " OU 3/4 " | C66: UN | D66: 21,33
A67: 36246 | B67: ACABAMENTO SIMPLES/CONVENCIONAL PARA FORRO PVC, TIPO "U" OU "C", COR BRANCA, COMPRIMENTO 6 M | C67: M | D67: 2,94
A68: 37600 | B68: ACESSORIO DE LIGACAO NAO ELETRICO PARA CARGAS EXPLOSIVAS, TUBO DE 6 M | C68: UN | D68: 28,27
A69: 37599 | B69: ACESSORIO INICIADOR NAO ELETRICO, TUBO DE 6 M, TEMPO DE RETARDO DE *160* MS | C69: UN | D69: 26,31
A70: 1 | B70: ACETILENO (RECARGA PARA CILINDRO DE CONJUNTO OXICORTE GRANDE) | C70: KG | D70: 33,00
A71: 3 | B71: ACIDO MURIATICO, DILUICAO 10% A 12% PARA USO EM LIMPEZA | C71: L | D71: 4,41
A72: 26 | B72: ACO CA-25, 10,0 MM, VERGALHAO | C72: KG | D72: 3,57
A73: 20 | B73: ACO CA-25, 12,5 MM, VERGALHAO | C73: KG | D73: 3,60
A74: 21 | B74: ACO CA-25, 16,0 MM, VERGALHAO | C74: KG | D74: 3,60
A75: 24 | B75: ACO CA-25, 20,0 MM, VERGALHAO | C75: KG | D75: 3,60
A76: 25 | B76: ACO CA-25, 25,0 MM, VERGALHAO | C76: KG | D76: 3,60
A77: 34341 | B77: ACO CA-25, 32,0 MM, VERGALHAO | C77: KG | D77: 3,39
A78: 22 | B78: ACO CA-25, 6,3 MM, VERGALHAO | C78: KG | D78: 3,85
A79: 23 | B79: ACO CA-25, 8,0 MM, VERGALHAO | C79: KG | D79: 3,82
A80: 34439 | B80: ACO CA-50, 10,0 MM, DOBRADO E CORTADO | C80: KG | D80: 4,24
A81: 34 | B81: ACO CA-50, 10,0 MM, VERGALHAO | C81: KG | D81: 3,77
A82: 34441 | B82: ACO CA-50, 12,5 MM, DOBRADO E CORTADO | C82: KG | D82: 4,02
A83: 31 | B83: ACO CA-50, 12,5 MM, VERGALHAO | C83: KG | D83: 3,59
A84: 34443 | B84: ACO CA-50, 16 MM, DOBRADO E CORTADO | C84: KG | D84: 4,02
A85: 27 | B85: ACO CA-50, 16,0 MM, VERGALHAO | C85: KG | D85: 3,59
A86: 34446 | B86: ACO CA-50, 20 MM, DOBRADO E CORTADO | C86: KG | D86: 4,02
A87: 29 | B87: ACO CA-50, 20,0 MM, VERGALHAO | C87: KG | D87: 3,35
A88: 28 | B88: ACO CA-50, 25,0 MM, VERGALHAO | C88: KG | D88: 3,88
A89: 34449 | B89: ACO CA-50, 6,3 MM, DOBRADO E CORTADO | C89: KG | D89: 4,43
A90: 32 | B90: ACO CA-50, 6,3 MM, VERGALHAO | C90: KG | D90: 3,95
A91: 33 | B91: ACO CA-50, 8,0 MM, VERGALHAO | C91: KG | D91: 4,43
A92: 34343 | B92: ACO CA-60, VERGALHAO, 9,5 MM | C92: KG | D92: 4,26
A93: 34452 | B93: ACO CA-60, 4,2 MM, DOBRADO E CORTADO | C93: KG | D93: 3,92
A94: 36 | B94: ACO CA-60, 4,2 MM, VERGALHAO | C94: KG | D94: 3,74
A95: 34456 | B95: ACO CA-60, 5,0 MM, DOBRADO E CORTADO | C95: KG | D95: 3,92
A96: 39 | B96: ACO CA-60, 5,0 MM, VERGALHAO | C96: KG | D96: 3,74
A97: 34457 | B97: ACO CA-60, 6,0 MM, DOBRADO E CORTADO | C97: KG | D97: 4,21
A98: 40 | B98: ACO CA-60, 6,0 MM, VERGALHAO | C98: KG | D98: 3,82
A99: 34460 | B99: ACO CA-60, 7,0 MM, DOBRADO E CORTADO | C99: KG | D99: 4,30
A100: 42 | B100: ACO CA-60, 7,0 MM, VERGALHAO | C100: KG | D100: 3,88
A101: 38 | B101: ACO CA-60, 8,0 MM, VERGALHAO | C101: KG | D101: 4,32
A102: 34344 | B102: ACO-FIO PARA PROTENSAO, CP-150 RB L, 8 MM | C102: KG | D102: 5,87
A103: 20063 | B103: ACOPLAMENTO DE CONDUTOR PLUVIAL, EM PVC, DIAMETRO ENTRE 80 E 100 MM, PARA DRENAGEM PREDIAL | C103: UN | D103: 3,38
A104: 40410 | B104: ACOPLAMENTO RIGIDO EM FERRO FUNDIDO PARA SISTEMA DE TUBULACAO RANHURADA, DN 50 MM (2") | C104: UN | D104: 16,90
A105: 40411 | B105: ACOPLAMENTO RIGIDO EM FERRO FUNDIDO PARA SISTEMA DE TUBULACAO RANHURADA, DN 65 MM (2 1/2") | C105: UN | D105: 18,34
A106: 40412 | B106: ACOPLAMENTO RIGIDO EMFERRO FUNDIDO PARA SISTEMA DE TUBULACAO RANHURADA, DN 80 MM (3") | C106: UN | D106: 20,58
A107: 38838 | B107: ADAPTADOR DE COBRE PARA TUBULACAO PEX, DN 16 X 15 MM | C107: UN | D107: 5,48
A108: 38839 | B108: ADAPTADOR DE COBRE PARA TUBULACAO PEX, DN 20 X 22 MM | C108: UN | D108: 6,46
A109: 55 | B109: ADAPTADOR DE COMPRESSAO EM POLIPROPILENO (PP), PARA TUBO EM PEAD, 20 MM X 1/2", PARA LIGACAO PREDIAL DE AGUA (NTS 179) | C109: UN | D109: 2,94
A110: 61 | B110: ADAPTADOR DE COMPRESSAO EM POLIPROPILENO (PP), PARA TUBO EM PEAD, 20 MM X 3/4", PARA LIGACAO PREDIAL DE AGUA (NTS 179) | C110: UN | D110: 2,78
A111: 62 | B111: ADAPTADOR DE COMPRESSAO EM POLIPROPILENO (PP), PARA TUBO EM PEAD, 32 MM X 1", PARA LIGACAO PREDIAL DE AGUA (NTS 179) | C111: UN | D111: 5,76
A112: 77 | B112: ADAPTADOR PVC PARA SIFAO METALICO, SOLDAVEL, COM ANEL BORRACHA (JE), 40 MM X 1 1/2" | C112: UN | D112: 4,41
A113: 76 | B113: ADAPTADOR PVC PARA SIFAO, ROSCAVEL, 40 MM X 1 1/4" | C113: UN | D113: 0,85
A114: 67 | B114: ADAPTADOR PVC ROSCAVEL, COM FLANGES E ANEL DE VEDACAO, 1/2", PARA CAIXA D' AGUA | C114: UN | D114: 9,61
A115: 71 | B115: ADAPTADOR PVC ROSCAVEL, COM FLANGES E ANEL DE VEDACAO, 1", PARA CAIXA D' AGUA | C115: UN | D115: 16,89
A116: 73 | B116: ADAPTADOR PVC ROSCAVEL, COM FLANGES E ANEL DE VEDACAO, 3/4", PARA CAIXA D' AGUA | C116: UN | D116: 12,15
A117: 103 | B117: ADAPTADOR PVC SOLDAVEL CURTO COM BOLSA E ROSCA, 110 MM X 4", PARA AGUA FRIA | C117: UN | D117: 42,01
A118: 107 | B118: ADAPTADOR PVC SOLDAVEL CURTO COM BOLSA E ROSCA, 20 MM X 1/2", PARA AGUA FRIA | C118: UN | D118: 0,80
A119: 65 | B119: ADAPTADOR PVC SOLDAVEL CURTO COM BOLSA E ROSCA, 25 MM X 3/4", PARA AGUA FRIA | C119: UN | D119: 0,90
A120: 108 | B120: ADAPTADOR PVC SOLDAVEL CURTO COM BOLSA E ROSCA, 32 MM X 1", PARA AGUA FRIA | C120: UN | D120: 1,77
A121: 110 | B121: ADAPTADOR PVC SOLDAVEL CURTO COM BOLSA E ROSCA, 40 MM X 1 1/2", PARA AGUA FRIA | C121: UN | D121: 4,21
A122: 109 | B122: ADAPTADOR PVC SOLDAVEL CURTO COM BOLSA E ROSCA, 40 MM X 1 1/4", PARA AGUA FRIA | C122: UN | D122: 3,21
A123: 111 | B123: ADAPTADOR PVC SOLDAVEL CURTO COM BOLSA E ROSCA, 50 MM X 1 1/4", PARA AGUA FRIA | C123: UN | D123: 7,30
A124: 112 | B124: ADAPTADOR PVC SOLDAVEL CURTO COM BOLSA E ROSCA, 50 MM X1 1/2", PARA AGUA FRIA | C124: UN | D124: 3,95
A125: 113 | B125: ADAPTADOR PVC SOLDAVEL CURTO COM BOLSA E ROSCA, 60 MM X 2", PARA AGUA FRIA | C125: UN | D125: 10,06
A126: 104 | B126: ADAPTADOR PVC SOLDAVEL CURTO COM BOLSA E ROSCA, 75 MM X 2 1/2", PARA AGUA FRIA | C126: UN | D126: 17,35
A127: 102 | B127: ADAPTADOR PVC SOLDAVEL CURTO COM BOLSA E ROSCA, 85 MM X 3", PARA AGUA FRIA | C127: UN | D127: 26,07
A128: 95 | B128: ADAPTADOR PVC SOLDAVEL, COM FLANGE E ANEL DE VEDACAO, 20 MM X 1/2", PARA CAIXA D'AGUA | C128: UN | D128: 11,02
A129: 96 | B129: ADAPTADOR PVC SOLDAVEL, COM FLANGE E ANEL DE VEDACAO, 25 MM X 3/4", PARA CAIXA D'AGUA | C129: UN | D129: 14,27
A130: 97 | B130: ADAPTADOR PVC SOLDAVEL, COM FLANGE E ANEL DE VEDACAO, 32 MM X 1", PARA CAIXA D'AGUA | C130: UN | D130: 17,96
A131: 98 | B131: ADAPTADOR PVC SOLDAVEL, COM FLANGE E ANEL DE VEDACAO, 40 MM X 1 1/4", PARA CAIXA D'AGUA | C131: UN | D131: 29,14
A132: 99 | B132: ADAPTADOR PVC SOLDAVEL, COM FLANGE E ANEL DE VEDACAO, 50 MM X 1 1/2", PARA CAIXA D'AGUA | C132: UN | D132: 33,61
A133: 100 | B133: ADAPTADOR PVC SOLDAVEL, COM FLANGES E ANEL DE VEDACAO, 60 MM X 2", PARA CAIXA D' AGUA | C133: UN | D133: 40,86
A134: 75 | B134: ADAPTADOR PVC SOLDAVEL, COM FLANGES LIVRES, 110 MM X 4", PARA CAIXA D' AGUA | C134: UN | D134: 306,51
A135: 114 | B135: ADAPTADOR PVC SOLDAVEL, COM FLANGES LIVRES, 25 MM X 3/4", PARA CAIXA D' AGUA | C135: UN | D135: 12,09
A136: 68 | B136: ADAPTADOR PVC SOLDAVEL, COM FLANGES LIVRES, 32 MM X 1", PARA CAIXA D' AGUA | C136: UN | D136: 16,22
A137: 86 | B137: ADAPTADOR PVC SOLDAVEL, COM FLANGES LIVRES, 40 MM X 1 1/4", PARA CAIXA D' AGUA | C137: UN | D137: 24,02
A138: 66 | B138: ADAPTADOR PVC SOLDAVEL, COM FLANGES LIVRES, 50 MM X 1 1/2", PARA CAIXA D' AGUA | C138: UN | D138: 27,55
A139: 69 | B139: ADAPTADOR PVC SOLDAVEL, COM FLANGES LIVRES, 60 MM X 2", PARA CAIXA D' AGUA | C139: UN | D139: 40,86
A140: 83 | B140: ADAPTADOR PVC SOLDAVEL, COM FLANGES LIVRES, 75 MM X 2 1/2", PARA CAIXA D' AGUA | C140: UN | D140: 158,99
A141: 74 | B141: ADAPTADOR PVC SOLDAVEL, COM FLANGES LIVRES, 85 MM X 3", PARA CAIXA D' AGUA | C141: UN | D141: 214,17
A142: 106 | B142: ADAPTADOR PVC SOLDAVEL, LONGO, COM FLANGE LIVRE, 110 MM X 4", PARA CAIXA D' AGUA | C142: UN | D142: 437,85
A143: 87 | B143: ADAPTADOR PVC SOLDAVEL, LONGO, COM FLANGE LIVRE, 25 MM X 3/4", PARA CAIXA D' AGUA | C143: UN | D143: 18,12
A144: 88 | B144: ADAPTADOR PVC SOLDAVEL, LONGO, COM FLANGE LIVRE, 32 MM X 1", PARA CAIXA D' AGUA | C144: UN | D144: 21,80
A145: 89 | B145: ADAPTADOR PVC SOLDAVEL, LONGO, COM FLANGE LIVRE, 40 MM X 1 1/4", PARA CAIXA D' AGUA | C145: UN | D145: 32,18
A146: 90 | B146: ADAPTADOR PVC SOLDAVEL, LONGO, COM FLANGE LIVRE, 50 MM X 1 1/2", PARA CAIXA D' AGUA | C146: UN | D146: 36,91
A147: 81 | B147: ADAPTADOR PVC SOLDAVEL, LONGO, COM FLANGE LIVRE, 60 MM X 2", PARA CAIXA D' AGUA | C147: UN | D147: 54,77
A148: 82 | B148: ADAPTADOR PVC SOLDAVEL, LONGO, COM FLANGE LIVRE, 75 MM X 2 1/2", PARA CAIXA D' AGUA | C148: UN | D148: 213,12
A149: 105 | B149: ADAPTADOR PVC SOLDAVEL, LONGO, COM FLANGE LIVRE, 85 MM X 3", PARA CAIXA D' AGUA | C149: UN | D149: 287,07
A150: 60 | B150: ADAPTADOR PVC, COM REGISTRO, PARA PEAD, 20 MM X 3/4", PARA LIGACAO PREDIAL DE AGUA | C150: UN | D150: 3,81
A151: 72 | B151: ADAPTADOR PVC, ROSCAVEL, COM FLANGES E ANEL DE VEDACAO, 1 1/2", PARA CAIXA D'AGUA | C151: UN | D151: 28,42
A152: 70 | B152: ADAPTADOR PVC, ROSCAVEL, COM FLANGES E ANEL DE VEDACAO, 1 1/4", PARA CAIXA D' AGUA | C152: UN | D152: 28,81
A153: 85 | B153: ADAPTADOR PVC, ROSCAVEL, COM FLANGES E ANEL DE VEDACAO, 2", PARA CAIXA D' AGUA | C153: UN | D153: 41,40
A154: 84 | B154: ADAPTADOR PVC, ROSCAVEL, PARA VALVULA PIA OU LAVATORIO, 40 MM | C154: UN | D154: 1,57
A155: 37997 | B155: ADAPTADOR, CPVC, SOLDAVEL, 15 MM, PARA AGUA QUENTE | C155: UN | D155: 4,55
A156: 37998 | B156: ADAPTADOR, CPVC, SOLDAVEL, 22 MM, PARA AGUA QUENTE | C156: UN | D156: 4,71
A157: 10899 | B157: ADAPTADOR, EM LATAO, ENGATE RAPIDO 2 1/2" X ROSCA INTERNA 5 FIOS 2 1/2", PARA INSTALACAO PREDIAL DE COMBATE A INCENDIO | C157: UN | D157: 70,53
A158: 10900 | B158: ADAPTADOR, EM LATAO, ENGATE RAPIDO1 1/2" X ROSCA INTERNA 5 FIOS 2 1/2", PARA INSTALACAO PREDIAL DE COMBATE A INCENDIO | C158: UN | D158: 55,19
A159: 46 | B159: ADAPTADOR, PVC PBA, BOLSA/ROSCA, JE, DN 75 / DE 85 MM | C159: UN | D159: 26,12
A160: 51 | B160: ADAPTADOR, PVC PBA, A BOLSA DEFOFO, JE, DN 100 / DE 110 MM | C160: UN | D160: 59,33
A161: 12863 | B161: ADAPTADOR, PVC PBA, A BOLSA DEFOFO, JE, DN 50 / DE 60 MM | C161: UN | D161: 17,07
A162: 50 | B162: ADAPTADOR, PVC PBA, A BOLSA DEFOFO, JE, DN 75 / DE 85 MM | C162: UN | D162: 37,58
A163: 47 | B163: ADAPTADOR, PVC PBA, BOLSA/ROSCA, JE, DN 100 / DE 110 MM | C163: UN | D163: 31,23
A164: 48 | B164: ADAPTADOR, PVC PBA, BOLSA/ROSCA, JE, DN 50 / DE 60 MM | C164: UN | D164: 12,18
A165: 52 | B165: ADAPTADOR, PVC PBA, PONTA/ROSCA, JE, DN 50 / DE 60 MM | C165: UN | D165: 6,08
A166: 43 | B166: ADAPTADOR, PVC PBA, PONTA/ROSCA, JE, DN 75 / DE 85 MM | C166: UN | D166: 16,01
A167: 4791 | B167: ADESIVO ACRILICO/COLA DE CONTATO | C167: KG | D167: 19,61
A168: 157 | B168: ADESIVO ESTRUTURAL A BASE DE RESINA EPOXI PARA INJECAO EM TRINCAS, BICOMPONENTE, BAIXA VISCOSIDADE | C168: KG | D168: 113,00
A169: 156 | B169: ADESIVO ESTRUTURAL A BASE DE RESINA EPOXI, BICOMPONENTE, FLUIDO | C169: KG | D169: 50,44
A170: 131 | B170: ADESIVO ESTRUTURAL A BASE DE RESINA EPOXI, BICOMPONENTE, PASTOSO (TIXOTROPICO) | C170: KG | D170: 48,42
A171: 39719 | B171: ADESIVO LIQUIDO A BASE DE RESINAS PARA COLAGEM DE ESPUMA DE ISOLAMENTO TERMICO FLEXIVEL | C171: L | D171: 58,67
A172: 21114 | B172: ADESIVO PARA TUBOS CPVC, *75* G | C172: UN | D172: 12,57
A173: 119 | B173: ADESIVO PLASTICO PARA PVC, BISNAGA COM 75 GR | C173: UN | D173: 4,96
A174: 20080 | B174: ADESIVO PLASTICO PARA PVC, FRASCO COM 175 GR | C174: UN | D174: 14,22
A175: 122 | B175: ADESIVO PLASTICO PARA PVC, FRASCO COM 850 GR | C175: UN | D175: 44,80
A176: 3410 | B176: ADESIVO/COLA PARA EPS (ISOPOR) E OUTROS MATERIAIS | C176: KG | D176: 17,66
A177: 124 | B177: ADITIVO ACELERADOR DE PEGA E ENDURECIMENTO PARA ARGAMASSAS E CONCRETOS | C177: L | D177: 12,58
A178: 7334 | B178: ADITIVO ADESIVO LIQUIDO PARA ARGAMASSAS DE REVESTIMENTOS CIMENTICIOS | C178: L | D178: 10,89
A179: 7325 | B179: ADITIVO IMPERMEABILIZANTE DE PEGA NORMAL PARA ARGAMASSAS E CONCRETOS SEM ARMACAO | C179: KG | D179: 5,82
A180: 123 | B180: ADITIVO IMPERMEABILIZANTE DE PEGA NORMAL PARA ARGAMASSAS E CONCRETOS SEM ARMACAO | C180: L | D180: 5,59
A181: 127 | B181: ADITIVO IMPERMEABILIZANTE DE PEGA ULTRARRAPIDA | C181: L | D181: 13,13
A182: 133 | B182: ADITIVO LIQUIDO INCORPORADOR DE AR PARA CONCRETO E ARGAMASSA | C182: L | D182: 5,63
A183: 37538 | B183: ADITIVO PLASTIFICANTE E ESTABILIZADOR PARA ARGAMASSAS DE ASSENTAMENTO E REBOCO | C183: 18L | D183: 139,95
A184: 132 | B184: ADITIVO PLASTIFICANTE RETARDADOR DE PEGA E REDUTOR DE AGUA PARA CONCRETO | C184: L | D184: 6,20
A185: 13408 | B185: ADITIVO SUPERPLASTIFICANTE DE PEGA NORMAL PARA CONCRETO (TAMBOR 200 KG) | C185: 200KG | D185: 2.204,79
A186: 37476 | B186: ADUELA/GALERIA DE CONCRETO ARMADO, SECAO RETANGULAR 1.50 X 1.50 M (L X A), C = 1.00 M, E = 20 CM | C186: UN | D186: 1.528,59
A187: 37478 | B187: ADUELA/GALERIA DE CONCRETO ARMADO, SECAO RETANGULAR 2.00 X 2.00 M (L X A), C = 1.00 M, E = 20 CM | C187: UN | D187: 2.162,55
A188: 37477 | B188: ADUELA/GALERIA DE CONCRETO ARMADO, SECAO RETANGULAR 2.50 X 2.50 M (L X A), C = 1.00 M, E = 20 CM | C188: UN | D188: 2.646,20
A189: 37479 | B189: ADUELA/GALERIA DE CONCRETO ARMADO, SECAO RETANGULAR 3.00 X 3.00 M (L X A), C = 1.00 M, E = 20 CM | C189: UN | D189: 3.308,77
A190: 4319 | B190: AFASTADOR PARA TELHA DE FIBROCIMENTO CANALETE 90 OU KALHETAO | C190: UN | D190: 1,28
A191: 40553 | B191: AGREGADO RECICLADO (RCD), CLASSE A, CINZA, TIPO RACHAO RECICLADO | C191: M3 | D191: 32,00
A192: 13003 | B192: AGUA SANITARIA | C192: L | D192: 2,18
A193: 6114 | B193: AJUDANTE DE ARMADOR | C193: H | D193: 10,68
A194: 40912 | B194: AJUDANTE DE ARMADOR (MENSALISTA) | C194: MES | D194: 1.867,92
A195: 247 | B195: AJUDANTE DE ELETRICISTA | C195: H | D195: 10,68
A196: 40919 | B196: AJUDANTE DE ELETRICISTA (MENSALISTA) | C196: MES | D196: 1.781,51
A197: 25958 | B197: AJUDANTE DE ESTRUTURA METALICA | C197: H | D197: 8,75
A198: 40984 | B198: AJUDANTE DE ESTRUTURAS METALICAS (MENSALISTA) | C198: MES | D198: 1.530,22
A199: 248 | B199: AJUDANTE DE OPERACAO EM GERAL | C199: H | D199: 11,66
A200: 41086 | B200: AJUDANTE DE OPERACAO EM GERAL (MENSALISTA) | C200: MES | D200: 2.037,21
A201: 6127 | B201: AJUDANTE DE PEDREIRO | C201: H | D201: 10,35
A202: 34466 | B202: AJUDANTE DE PINTOR | C202: H | D202: 10,72
... 11202 more rows

Sheet Plan2
B6: TUBULAÇÃO DE PVC DEFOFO DN 300 MM | E6: DIMEX | F6: ELETRICA PJ | G6: HIDROPLAST | I6: R$ UNITARIO ADMITIDO - CODEVASF
B7: TUBO EM PVC DEFOFO DN 300 MM | C7: M | D7: 60 | E7: 1236.45 | F7: 1200.36 | G7: 1146.03 | I7: =MIN(E7:G7) -> 1146.03
B8: EXTREMIDADE EM PVC DEFOFO PONTA/FLANGE DN 300 | C8: UN | D8: 6 | E8: 265.39 | F8: 262.21 | G8: 254 | I8: =MIN(E8:G8) -> 254
B9: EXTREMIDADE EM PVC DEFOFO BOLSA/FLANGE DN 301 | C9: UN | D9: 6 | E9: 274.21 | F9: 269.41 | G9: 264 | I9: 264
B10: CURVA PVC DEFOFO 90 GRAUS DN 300 | C10: UN | D10: 6 | E10: 630.12 | F10: 625.25 | G10: 600 | I10: 600
B13: TUBOS E CONEXOES EM AÇO CARBONO | E13: JOYTUBOS | F13: MANDACARU | G13: SUPERTUBOS | I13: R$ UNITARIO ADMITIDO - CODEVASF
B14: TUBULAÇÃO AÇO CARBONO 1000 MM E=5/16" 6 M - - PEÇA DE 6M – FLANGEADO NAS DUAS PONTAS | C14: BR | D14: 7 | E14: 5736 | F14: 5620.4 | G14: 5661.32 | I14: =MIN(E14:G14) -> 5620.4
B15: REDUÇÃO EM AÇO CARBONO DN 600MM X 300MM FLANGEADAS NAS DUAS PONTAS | C15: UN | D15: 3 | E15: 7300 | F15: 7143.52 | G15: 7186.09 | I15: =MIN(E15:G15) -> 7143.52
B16: VÁLVULAS BORBOLETA DE 400 MM COM JUNTA DRESSER | C16: UN | D16: 3 | E16: 4953 | F16: 4849.15 | G16: 4864.43 | I16: 4849.15
B17: VÁLVULAS DE PÉ DE 300 MM COM JUNTAS DRESSER | C17: UN | D17: 3 | E17: 4400 | F17: 4317.3 | G17: 4242.56 | I17: 4242.56
B18: VÁLVULAS DE RETENÇÃO DE 300 MM COM JUNTAS DRESSER | C18: UN | D18: 3 | E18: 5700.32 | F18: 5601.42 | G18: 5619.07 | I18: 5601.42
E21: CENTELHA | F21: FIOCON | G21: SK SOLUÇÕES | H21: LOJA DAS BOMBAS | I21: R$ UNITARIO ADMITIDO - CODEVASF
B22: SIST FLUTUANTE | C22: CJ | D22: 3 | E22: 117446.61 | F22: 118659.94 | G22: 115000 | H22: 101200 | I22: =MIN(E22:H22) -> 101200
B23: KIT SISTEMA DE ADUÇÃO: 1 MANGOTE DN250MM X 10 M, 2 ADAPTADOR TIPO ROSCAXRANHURA DE 10", 2 FLANGE DE 10" EM FERRO FUNDIDO, 4 ABRAÇADEIRA DE 10", 1 BOIA DE SUSTENTAÇÃO PARA CONJUNTO FLEXIVEL | C23: CJ | D23: 3 | E23: 9895.43 | F23: 9997.35 | G23: 9690 | I23: =MIN(E23:G23) -> 9690
B24: SISTEMA DE ADUÇÃO TRECHO RIGIDO | C24: M | D24: 120 | E24: 196.07 | F24: 1980.09 | G24: 192 | I24: 192
B25: CHAVE DE PARTIDA: Chave de partida soft-starter microprocessada de 125 cv, 380v/60hz, montada em cubiculo metalico (modelo economico), com contador de by-pass, proteção de curto atraves de disjuntor tripolar, proteção de falta de fase, proteção de sobre e subcorrente, proteção de sobre e sub tensao, botao liga;desliga, sinalização indicando motor ligado, monitorização via IHM de: amperimetro, voltimetro e horimetro, com rele de nivel. | C25: CJ | D25: 5 | E25: 19402.8 | F25: 19602.65 | G25: 19000 | I25: 19000
B26: CABEAMENTO - Cabo de cobre flexivel 1x95mm² | C26: M | D26: 200 | E26: 101.1 | F26: 102.14 | G26: 99 | I26: 99
E28: MANDACARU | F28: IRACABOS | G28: MATHEUS ELET | I28: R$ UNITARIO ADMITIDO - CODEVASF
B29: SUBESTAÇÃO PADRÃO CELPE DE 300 Kva 220/380v APOIADA EM QUADRO DE FORÇA, COM CABEAMENTO NECESSÁRIO PARA LIGAÇÃO DESDE A RECEPÇÃO ATÉ DESTINAÇÃO DAS CARGAS SOLICITADAS PELOS MOTORES DAS BOMBAS DE CENTRIFUGAS, COM 200 M DE CABO FLEX 95 MM² (HERP), COM 255 CABO ALUMINIO XLPE 35 MM² 15 KV CINZA, 40 M DE CABO RÍGIDO 240 MM²(HERP), COM PARA RAIO POLIMERICO 12 KV 10 KA, COM ATERRAMENTO, QUADRO DE MEDIÇÃO TRIFÁSICO, TUBULAÇÃO GALVANIZADA PARA EXECUÇÃO TOTAL, DISJUNTOR DE 500 A, PARAFUSOS, ARRUELAS, CONECTORES, LUVAS, CABEAMENTO E DEMAIS ITENS NECESSÁRIOS PARA EXECUÇÃO TOTAL DO SERVIÇO; | C29: UN | D29: 1 | E29: 57664.45 | F29: 63679.45 | G29: 59783.1 | I29: =MIN(E29:G29) -> 57664.45

Sheet Plan1
B4: ITEM | C4: UNID | D4: QUANT
B5: EXECUÇÃO DE CONTRAPISO EM ARGAMASSA TRAÇO 1:4 (CIMENTO E AREIA), ESPESSURA 3CM. | C5: m² | D5: 130
B6: FORNECIMENTO E INSTALAÇÃO DE CHAVE DE PARTIDA soft-starter, com contador de by-pass. | C6: CJ | D6: 1
B7: FORNECIMENTO E INSTALAÇÃO DE SUBESTAÇÃO PADRÃO CELPE DE 300 Kva 220/380v APOIADA EM QUADRO DE FORÇA. | C7: UN | D7: 1
B8: ASSENTAMENTO DE TUBULAÇÃO AÇO CARBONO - PEÇA DE 6M | C8: PÇ | D8: 2
